{"text_format":"3","workbook":"xlsx","n_sheets":3,"sheets":["Инструкция","Калькулятор","Коэффициенты повторяемости"],"not_rendered":{"images":6,"macros":1,"defined_names":20,"comments":2},"read":"whole","date_system":"1900"}

{"sheet":"Инструкция","index":0,"n_rows":27,"n_cols":3,"rows_kept":27,"merged":[[1,2,1,9],[2,2,2,9],[4,2,4,9],[5,2,5,9],[6,2,6,9],[8,2,8,9],[9,2,9,9],[11,2,11,9],[12,2,12,9],[13,2,13,9],[14,2,14,9],[15,2,15,9],[16,2,16,9],[18,2,18,9],[19,2,19,9],[20,2,20,9],[21,2,21,9],[23,2,23,9],[24,2,24,9],[25,2,25,9],[26,2,26,9]]}
[]
[null,null,"Подготовлено редакцией АПС «Бизнес-Инфо» (ООО «Профессиональные правовые системы»)"]
[null,null,"Инструкция по работе\nс Калькулятором норм труда на уборку производственных помещений"]
[]
[null,null,"1. Калькулятор позволяет рассчитать нормы труда:"]
[null,null," - для конкретного уборщика;"]
[null,null," - на уборку помещения."]
[]
[null,null,"2. Укажите продолжительность рабочей смены и наименование помещения или Ф.И.О. уборщика."]
[]
[]
[null,null,"3. Выберите  из выпадающих списков группы помещений, в которых производится уборка."]
[]
[null,null,"При выборе группы автоматически открываются формы расчетов, количество которых равно количеству видов работ и способов уборки производственного помещения для данной группы."]
[]
[null,null,"Для скрытия форм группы нажмите кнопку «Скрыть раздел»."]
[]
[]
[null,null,"4. В разделе «Уборка стен, панелей, колонн» для открытия форм расчетов нажмите соответствующие кнопки."]
[]
[null,null,"5. При расчете нормы труда для уборщика обращайте внимание на сообщение, которое может появиться, если суммарная нормативная трудоемкость работ окажется больше указанной продолжительности рабочей смены."]
[]
[]
[null,null,"6. При расчете норм труда на уборку помещения на основании нормативной трудоемкости обслуживания может быть рассчитана численность уборщиков с учетом установленного фонда рабочего времени и коэффициента сменности."]
[]
[null,null,"Справочно"]
[null,null,"Калькулятор разработан на основании постановления Министерства труда и социальной защиты Республики Беларусь от 30.06.2003 № 79 «О нормах труда на уборку производственных помещений»."]

{"sheet":"Калькулятор","index":1,"n_rows":515,"n_cols":34,"rows_kept":515,"merged":[[2,2,2,11],[2,13,2,16],[4,2,4,6],[4,13,6,16],[4,17,6,17],[6,2,6,11],[8,2,8,5],[8,9,16,11],[8,13,11,17],[10,2,10,5],[12,2,12,5],[14,2,14,5],[16,2,16,5],[18,2,18,11],[20,2,20,5],[20,6,20,11],[22,2,22,5],[24,2,24,6],[26,2,26,4],[26,6,26,10],[28,2,28,4],[30,2,30,7],[32,2,32,6],[32,8,32,11],[34,2,34,5],[34,6,34,11],[36,2,36,5],[38,2,38,6],[40,2,40,4],[40,6,40,10],[42,2,42,4],[44,2,44,7],[46,2,46,6],[46,8,46,11],[48,2,48,5],[48,6,48,11],[50,2,50,5],[52,2,52,6],[54,2,54,4],[54,6,54,10],[56,2,56,4],[58,2,58,7],[60,2,60,6],[60,8,60,11],[62,2,62,11],[64,2,64,4],[70,2,70,5],[70,6,70,11],[72,2,72,6],[74,2,74,4],[76,2,76,5],[78,2,78,5],[80,2,80,7],[82,2,82,6],[82,8,82,11],[84,2,84,4],[92,2,92,5],[92,6,92,11],[94,2,94,6],[96,2,96,4],[98,2,98,5],[100,2,100,5],[102,2,102,7],[104,2,104,6],[104,8,104,11],[108,2,108,6],[108,7,108,11],[110,2,110,6],[112,2,112,4],[114,2,114,5],[116,2,116,5],[118,2,118,7],[120,2,120,6],[122,2,122,11],[124,2,124,5],[124,6,124,11],[126,2,126,9],[128,2,128,6],[130,2,130,4],[130,6,130,10],[132,2,132,4],[134,2,134,5],[136,2,136,7],[138,2,138,6],[138,8,138,11],[140,2,140,5],[140,6,140,11],[142,2,142,9],[144,2,144,6],[146,2,146,4],[146,6,146,10],[148,2,148,4],[150,2,150,5],[152,2,152,7],[154,2,154,6],[154,8,154,11],[156,2,156,5],[156,6,156,11],[158,2,158,9],[160,2,160,6],[162,2,162,4],[162,6,162,10],[164,2,164,4],[166,2,166,5],[168,2,168,7],[170,2,170,6],[170,8,170,11],[172,2,172,5],[172,6,172,11],[174,2,174,9],[176,2,176,6],[178,2,178,4],[178,6,178,10],[180,2,180,4],[182,2,182,5],[184,2,184,7],[186,2,186,6],[186,8,186,11],[188,2,188,5],[188,6,188,11],[190,2,190,9],[192,2,192,6],[194,2,194,4],[194,6,194,10],[196,2,196,4],[198,2,198,5],[200,2,200,7],[202,2,202,6],[202,8,202,11],[204,2,204,11],[206,2,206,5],[206,6,206,11],[208,2,208,9],[210,2,210,6],[212,2,212,4],[212,6,212,10],[214,2,214,4],[216,2,216,5],[218,2,218,7],[220,2,220,6],[220,8,220,11],[222,2,222,5],[222,6,222,11],[224,2,224,9],[226,2,226,6],[228,2,228,4],[228,6,228,10],[230,2,230,4],[232,2,232,5],[234,2,234,7],[236,2,236,6],[236,8,236,11],[238,2,238,5],[238,6,238,11],[240,2,240,9],[242,2,242,6],[244,2,244,4],[244,6,244,10],[246,2,246,4],[248,2,248,5],[250,2,250,7],[252,2,252,6],[252,8,252,11],[254,2,254,5],[254,6,254,11],[256,2,256,9],[258,2,258,6],[260,2,260,4],[260,6,260,10],[262,2,262,4],[264,2,264,5],[266,2,266,7],[268,2,268,6],[268,8,268,11],[270,2,270,5],[270,6,270,11],[272,2,272,9],[274,2,274,6],[276,2,276,4],[276,6,276,10],[278,2,278,4],[280,2,280,5],[282,2,282,7],[284,2,284,6],[284,8,284,11],[286,2,286,5],[286,6,286,11],[288,2,288,9],[290,2,290,6],[292,2,292,4],[292,6,292,10],[294,2,294,4],[296,2,296,5],[298,2,298,7],[300,2,300,6],[300,8,300,11],[302,2,302,5],[302,6,302,11],[304,2,304,9],[306,2,306,6],[308,2,308,4],[308,6,308,10],[310,2,310,4],[312,2,312,5],[314,2,314,7],[316,2,316,6],[316,8,316,11],[318,2,318,5],[318,6,318,11],[320,2,320,9],[322,2,322,6],[324,2,324,4],[324,6,324,10],[326,2,326,4],[328,2,328,5],[330,2,330,7],[332,2,332,6],[332,8,332,11],[334,2,334,11],[336,2,336,5],[336,6,336,11],[338,2,338,9],[340,2,340,6],[342,2,342,4],[342,6,342,10],[344,2,344,4],[346,2,346,5],[350,2,350,10],[352,2,352,7],[354,2,354,6],[354,8,354,11],[356,2,356,5],[356,6,356,11],[358,2,358,9],[360,2,360,6],[362,2,362,4],[362,6,362,10],[366,2,366,5],[370,2,370,10],[372,2,372,7],[374,2,374,6],[374,8,374,11],[376,2,376,5],[376,6,376,11],[378,2,378,9],[380,2,380,6],[382,2,382,4],[382,6,382,10],[386,2,386,5],[390,2,390,10],[392,2,392,7],[394,2,394,6],[394,8,394,11],[396,2,396,11],[398,2,398,5],[398,6,398,11],[400,2,400,9],[402,2,402,6],[404,2,404,4],[404,6,404,10],[408,2,408,5],[410,2,410,10],[412,2,412,7],[414,2,414,6],[414,8,414,11],[416,2,416,5],[416,6,416,11],[418,2,418,9],[420,2,420,6],[422,2,422,4],[422,6,422,10],[426,2,426,5],[428,2,428,10],[430,2,430,7],[432,2,432,6],[432,8,432,11],[434,2,434,11],[436,2,436,5],[438,2,438,5],[438,6,438,11],[440,2,440,6],[442,2,442,4],[442,6,442,10],[446,2,446,5],[448,2,448,7],[450,2,450,6],[452,2,452,5],[454,2,454,5],[454,6,454,11],[456,2,456,6],[458,2,458,4],[458,6,458,10],[462,2,462,5],[464,2,464,7],[466,2,466,6],[468,2,468,5],[470,2,470,5],[470,6,470,11],[472,2,472,6],[474,2,474,4],[474,6,474,10],[478,2,478,5],[480,2,480,7],[482,2,482,6],[484,2,484,5],[486,2,486,5],[486,6,486,11],[488,2,488,6],[490,2,490,4],[490,6,490,10],[494,2,494,5],[496,2,496,7],[498,2,498,6],[500,2,500,5],[502,2,502,5],[502,6,502,11],[504,2,504,6],[506,2,506,4],[506,6,506,10],[510,2,510,5],[512,2,512,7],[514,2,514,6]]}
[" "]
[]
[null,null,"Калькулятор норм труда на уборку производственных помещений",{"$nulls":10},"Итого нормативная трудоемкость обслуживания, чел.-ч",{"$nulls":3},{"$f":"I31+I45+I59+I81+I103+I119+I137+I153+I169+I185+I201+I219+I235+I251+I267+I283+I299+I315+I331+I353+I373+I393+I413+I431+I449+I465+I481+I497+I513","v":{"v":0,"d":"0.00"}}]
[]
[null,null,"Продолжительность рабочей смены, ч",{"$nulls":10},"Итого нормативная обслуживаемая площадь, м2",{"$nulls":3},{"$f":"H33+H47+H61+H83+H105+H121+H139+H155+H171+H187+H203+H221+H237+H253+H269+H285+H301+H317+H333+H355+H375+H395+H415+H433+H451+H467+H483+H499+H515","v":{"v":0,"d":"0.0"}}]
[{"$nulls":19},{"$f":"CONCATENATE($G$9,$G$21)","v":""},1,1,"Подметание пола без предварительного увлажнения",{"$f":"CONCATENATE(V6,W6)","v":"1Подметание пола без предварительного увлажнения"},0.37,null,2160,null,null,"Подметание пола без предварительного увлажнения"]
[{"$nulls":19},{"$f":"CONCATENATE($G$9,$G$35)","v":""},2,1,"Подметание пола с предварительным увлажнением",{"$f":"CONCATENATE(V7,W7)","v":"1Подметание пола с предварительным увлажнением"},{"v":0.4,"d":"0.40"},null,2000,null,null,"Подметание пола с предварительным увлажнением"]
[{"$nulls":19},{"$f":"CONCATENATE($G$9,$G$49)","v":""},3,1,"Мытье пола с применением моющих средств","1Мытье пола с применением моющих средств",1.12,null,715,null,null,"Мытье пола с применением моющих средств"]
[null,null,"Группа производственного помещения",{"$nulls":6},{"$f":"IF(OR(AND(G9=1,G11=1),AND(G9=1,G13=1),AND(G9=1,G15=1),AND(G9=1,G17=1)),\"Один и тот же номер группы может быть указан один раз\",\nIF(OR(AND(G9=2,G11=2),AND(G9=2,G13=2),AND(G9=2,G15=2),AND(G9=2,G17=2)),\"Один и тот же номер группы может быть указан один раз\",\nIF(OR(AND(G9=3,G11=3),AND(G9=3,G13=3),AND(G9=3,G15=3),AND(G9=3,G17=3)),\"Один и тот же номер группы может быть указан один раз\",\nIF(OR(AND(G9=4,G11=4),AND(G9=4,G13=4),AND(G9=4,G15=4),AND(G9=4,G17=4)),\"Один и тот же номер группы может быть указан один раз\",\nIF(OR(AND(G9=5,G11=5),AND(G9=5,G13=5),AND(G9=5,G15=5),AND(G9=5,G17=5)),\"Номер группы может быть указан один раз\",\"\")\n\n))))","v":""},{"$nulls":3},{"$f":"IF(H5=\"\",\"\",IF(R3>H5,\"Нормативная трудоемкость обслуживания превышает продолжительность рабочей смены!\"))","v":""},{"$nulls":5},{"$f":"CONCATENATE($G$9,$G$71)","v":""},4,1,"Мытье и уборка женского туалета","1Мытье и уборка женского туалета",4.57,null,175]
[{"$nulls":19},{"$f":"CONCATENATE($G$9,$G$93)","v":""},5,1,"Мытье и уборка мужского туалета","1Мытье и уборка мужского туалета",5.33,null,150,null,null,"Мытье и уборка женского туалета"]
[null,null,"Группа производственного помещения",{"$nulls":16},{"$f":"CONCATENATE($G$9,$H$109)","v":""},null,1,"Мытье и уборка душевой комнаты","1Мытье и уборка душевой комнаты",2.86,null,280,null,null,"Мытье и уборка мужского туалета"]
[{"$nulls":19},{"$f":"CONCATENATE($G$11,$G$21)","v":""},null,2,"Подметание пола без предварительного увлажнения",{"$f":"CONCATENATE(V12,W12)","v":"2Подметание пола без предварительного увлажнения"},0.37,null,2160,null,null,"Мытье и уборка душевой комнаты"]
[null,null,"Группа производственного помещения",{"$nulls":16},{"$f":"CONCATENATE($G$11,$G$35)","v":""},null,2,"Подметание пола с предварительным увлажнением",{"$f":"CONCATENATE(V13,W13)","v":"2Подметание пола с предварительным увлажнением"},{"v":0.4,"d":"0.40"},null,2000]
[{"$nulls":19},{"$f":"CONCATENATE($G$11,$G$49)","v":""},null,2,"Мытье пола с применением моющих средств","2Мытье пола с применением моющих средств",1.12,null,715,null,null,1,2,3,4,5]
[null,null,"Группа производственного помещения",{"$nulls":16},{"$f":"CONCATENATE($G$11,$G$71)","v":""},null,2,"Мытье и уборка женского туалета","2Мытье и уборка женского туалета",4.57,null,175]
[{"$nulls":19},{"$f":"CONCATENATE($G$11,$G$93)","v":""},null,2,"Мытье и уборка мужского туалета","2Мытье и уборка мужского туалета",5.33,null,150]
[null,null,"Группа производственного помещения",{"$nulls":16},{"$f":"CONCATENATE($G$11,$H$109)","v":""},null,2,"Мытье и уборка душевой комнаты","2Мытье и уборка душевой комнаты",2.86,null,280]
[{"$nulls":19},{"$f":"CONCATENATE($G$13,$G$21)","v":""},null,3,"Подметание пола без предварительного увлажнения",{"$f":"CONCATENATE(V18,W18)","v":"3Подметание пола без предварительного увлажнения"},0.37,null,2160]
[null,null,"Уборка помещений на производствах, не имеющих отходов (1-я группа)",{"$nulls":16},{"$f":"CONCATENATE($G$13,$G$35)","v":""},null,3,"Подметание пола с предварительным увлажнением",{"$f":"CONCATENATE(V19,W19)","v":"3Подметание пола с предварительным увлажнением"},{"v":0.4,"d":"0.40"},null,2000]
[{"$nulls":19},{"$f":"CONCATENATE($G$13,$G$49)","v":""},null,3,"Мытье пола с применением моющих средств","3Мытье пола с применением моющих средств",1.12,null,715]
[null,null,"Вид работ и способ уборки производственного помещения",{"$nulls":16},{"$f":"CONCATENATE($G$13,$G$71)","v":""},null,3,"Мытье и уборка женского туалета","3Мытье и уборка женского туалета",4.57,null,175]
[{"$nulls":19},{"$f":"CONCATENATE($G$13,$G$93)","v":""},null,3,"Мытье и уборка мужского туалета","3Мытье и уборка мужского туалета",5.33,null,150]
[null,null,"Повторяемость уборки за смену",{"$nulls":16},{"$f":"CONCATENATE($G$13,$H$109)","v":""},null,3,"Мытье и уборка душевой комнаты","3Мытье и уборка душевой комнаты",2.86,null,280]
[{"$nulls":19},{"$f":"CONCATENATE($G$15,$G$21)","v":""},null,4,"Подметание пола без предварительного увлажнения",{"$f":"CONCATENATE(V24,W24)","v":"4Подметание пола без предварительного увлажнения"},0.37,null,2160]
[null,null,"Норма времени обслуживания 100 м2, чел.-ч",{"$nulls":4},{"$f":"IFERROR(VLOOKUP($T$6,$X$6:$AA$11,2,FALSE),0)","v":{"v":0,"d":"0.00"}},{"$nulls":11},{"$f":"CONCATENATE($G$15,$G$35)","v":""},null,4,"Подметание пола с предварительным увлажнением",{"$f":"CONCATENATE(V25,W25)","v":"4Подметание пола с предварительным увлажнением"},{"v":0.4,"d":"0.40"},null,2000,null,null,"норма времени обслуживания"]
[{"$nulls":19},{"$f":"CONCATENATE($G$15,$G$49)","v":""},null,4,"Мытье пола с применением моющих средств","4Мытье пола с применением моющих средств",1.12,null,715]
[null,null,"Норма обслуживания, м2",null,null,{"$f":"IFERROR(VLOOKUP($T$6,$X$6:$AA$11,4,FALSE),0)","v":{"v":0,"d":"0.00"}},"Ширина проходов между оборудованием, м",{"$nulls":12},{"$f":"CONCATENATE($G$15,$G$71)","v":""},null,4,"Мытье и уборка женского туалета","4Мытье и уборка женского туалета",4.57,null,175,null,null,"норма обслуживания"]
[{"$nulls":19},{"$f":"CONCATENATE($G$15,$G$93)","v":""},null,4,"Мытье и уборка мужского туалета","4Мытье и уборка мужского туалета",5.33,null,150]
[null,null,"Площадь помещения, м2",{"$nulls":16},{"$f":"CONCATENATE($G$15,$H$109)","v":""},null,4,"Мытье и уборка душевой комнаты","4Мытье и уборка душевой комнаты",2.86,null,280]
[{"$nulls":19},{"$f":"CONCATENATE($G$17,$G$21)","v":""},null,5,"Подметание пола без предварительного увлажнения",{"$f":"CONCATENATE(V30,W30)","v":"5Подметание пола без предварительного увлажнения"},0.37,null,2160]
[null,null,"Нормативная трудоемкость обслуживания, чел.-ч",{"$nulls":5},{"$f":"IF($G$23=\"\",$F$29/100*$H$25,$F$29/100*$H$25*IFERROR(VLOOKUP('Коэффициенты повторяемости'!$K$3,'Коэффициенты повторяемости'!$O$3:$P$102,2,FALSE),0))","v":{"v":0,"d":"0.00"}},{"$nulls":10},{"$f":"CONCATENATE($G$17,$G$35)","v":""},null,5,"Подметание пола с предварительным увлажнением",{"$f":"CONCATENATE(V31,W31)","v":"5Подметание пола с предварительным увлажнением"},{"v":0.4,"d":"0.40"},null,2000]
[{"$nulls":19},{"$f":"CONCATENATE($G$17,$G$49)","v":""},null,5,"Мытье пола с применением моющих средств","5Мытье пола с применением моющих средств",1.12,null,715]
[null,null,"Нормативная обслуживаемая площадь, м2",{"$nulls":4},{"$f":"IF($L$27=\"\",0,IF($L$27<1,IF($G$23=\"\",$F$27,$F$27*IFERROR(VLOOKUP('Коэффициенты повторяемости'!$K$4,'Коэффициенты повторяемости'!$O$3:$P$102,2,FALSE),0))*0.85,IF(L27>=1,IF(G23=\"\",F27,F27*IFERROR(VLOOKUP('Коэффициенты повторяемости'!$K$4,'Коэффициенты повторяемости'!$O$3:$P$102,2,FALSE),0)))))","v":{"v":0,"d":"0.0"}},{"$f":"IF(L27=\"\",\"Укажите ширину прохода между оборудованием\",\"\")","v":"Укажите ширину прохода между оборудованием"},{"$nulls":10},{"$f":"CONCATENATE($G$17,$G$71)","v":""},null,5,"Мытье и уборка женского туалета","5Мытье и уборка женского туалета",4.57,null,175]
[{"$nulls":19},{"$f":"CONCATENATE($G$17,$G$93)","v":""},null,5,"Мытье и уборка мужского туалета","5Мытье и уборка мужского туалета",5.33,null,150]
[null,null,"Вид работ и способ уборки производственного помещения",{"$nulls":16},{"$f":"CONCATENATE($G$17,$H$109)","v":""},null,5,"Мытье и уборка душевой комнаты","5Мытье и уборка душевой комнаты",2.86,null,280]
[]
[null,null,"Повторяемость уборки за смену"]
[]
[null,null,"Норма времени обслуживания 100 м2, чел.-ч",{"$nulls":4},{"$f":"IFERROR(VLOOKUP($T$7,$X$6:$AA$11,2,FALSE),0)","v":{"v":0,"d":"0.00"}},{"$nulls":21},"норма времени обслуживания"]
[]
[null,null,"Норма обслуживания, м2",null,null,{"$f":"IFERROR(VLOOKUP($T$7,$X$6:$AA$11,4,FALSE),0)","v":{"v":0,"d":"0.00"}},"Ширина проходов между оборудованием, м",{"$nulls":22},"норма обслуживания"]
[]
[null,null,"Площадь помещения, м2"]
[]
[null,null,"Нормативная трудоемкость обслуживания, чел.-ч",{"$nulls":5},{"$f":"IF($G$37=\"\",$F$43/100*$H$39,$F$43/100*$H$39*IFERROR(VLOOKUP('Коэффициенты повторяемости'!$K$5,'Коэффициенты повторяемости'!$O$3:$P$102,2,FALSE),0))","v":{"v":0,"d":"0.00"}}]
[]
[null,null,"Нормативная обслуживаемая площадь, м2",{"$nulls":4},{"$f":"IF($L$41=\"\",0,IF($L$41<1,IF($G$37=\"\",$F$41,$F$41*IFERROR(VLOOKUP('Коэффициенты повторяемости'!$K$6,'Коэффициенты повторяемости'!$O$3:$P$102,2,FALSE),0))*0.85,IF(L41>=1,IF(G37=\"\",F41,F41*IFERROR(VLOOKUP('Коэффициенты повторяемости'!$K$6,'Коэффициенты повторяемости'!$O$3:$P$102,2,FALSE),0)))))","v":{"v":0,"d":"0.0"}},{"$f":"IF(L41=\"\",\"Укажите ширину прохода между оборудованием\",\"\")","v":"Укажите ширину прохода между оборудованием"}]
[]
[null,null,"Вид работ и способ уборки производственного помещения"]
[]
[null,null,"Повторяемость уборки за смену"]
[]
[null,null,"Норма времени обслуживания 100 м2, чел.-ч",{"$nulls":4},{"$f":"IFERROR(VLOOKUP($T$8,$X$6:$AA$11,2,FALSE),0)","v":{"v":0,"d":"0.00"}},{"$nulls":11},3,{"$f":"IF(F67=\"\",\"\",IF((T53-F67)>0,1.02^(T53-F67),IF((F67-T53)>0,0.98^(F67-T53),1)))","v":""}]
[]
[null,null,"Норма обслуживания, м2",null,null,{"$f":"IFERROR(VLOOKUP($T$8,$X$6:$AA$11,4,FALSE),0)","v":{"v":0,"d":"0.00"}},"Ширина проходов между оборудованием, м",{"$nulls":12},2,{"$f":"IF(F69=\"\",\"\",IF((T55-F69)>0,1.02^(T55-F69),IF((F69-T55)>0,0.98^(F69-T55),1)))","v":""}]
[]
[null,null,"Площадь помещения, м2"]
[]
[null,null,"Нормативная трудоемкость обслуживания, чел.-ч",{"$nulls":5},{"$f":"IF($G$51=\"\",$F$57/100*$H$53,$F$57/100*$H$53*IFERROR(VLOOKUP('Коэффициенты повторяемости'!$K$7,'Коэффициенты повторяемости'!$O$3:$P$102,2,FALSE),0))","v":{"v":0,"d":"0.00"}},{"$nulls":20},"норма времени обслуживания"]
[]
[null,null,"Нормативная обслуживаемая площадь, м2",{"$nulls":4},{"$f":"IF(L55=\"\",0,IF(L55<1,IF(G51=\"\",F55,F55*IFERROR(VLOOKUP('Коэффициенты повторяемости'!$K$8,'Коэффициенты повторяемости'!$O$3:$P$102,2,FALSE),0))*0.85,IF(L55>=1,IF(G51=\"\",F55,F55*IFERROR(VLOOKUP('Коэффициенты повторяемости'!$K$8,'Коэффициенты повторяемости'!$O$3:$P$102,2,FALSE),0)))))","v":{"v":0,"d":"0.0"}},{"$f":"IF(L55=\"\",\"Укажите ширину прохода между оборудованием\",\"\")","v":"Укажите ширину прохода между оборудованием"},{"$nulls":20},"норма обслуживания"]
[]
[null,null,"Туалеты и душевые комнаты"]
[]
[null,null,"Женские туалеты"]
[]
[null,null,"Количество унитазов, ед."]
[]
[null,null,"Количество раковин, ед."]
[]
[null,null,"Вид работ и способ уборки туалета"]
[]
[null,null,"Норма времени обслуживания 100 м2, чел.-ч",{"$nulls":4},{"$f":"IFERROR(VLOOKUP($T$9,$X$6:$AA$11,2,FALSE),0)","v":{"v":0,"d":"0.00"}},{"$nulls":11},3,{"$f":"IF(F87=\"\",\"\",IF((T73-F87)>0,1.02^(T73-F87),IF((F87-T73)>0,0.98^(F87-T73),1)))","v":""}]
[]
[null,null,"Норма обслуживания, м2",null,null,{"$f":"IFERROR(VLOOKUP($T$9,$X$6:$AA$11,4,FALSE),0)","v":{"v":0,"d":"0.0"}},{"$nulls":13},2,{"$f":"IF(F89=\"\",\"\",IF((T75-F89)>0,1.02^(T75-F89),IF((F89-T75)>0,0.98^(F89-T75),1)))","v":""}]
[]
[null,null,"Площадь женских туалетов, м2",{"$nulls":16},3,{"$f":"IF(F91=\"\",\"\",IF((T77-F91)>0,1.02^(T77-F91),IF((F91-T77)>0,0.98^(F91-T77),1)))","v":""}]
[]
[null,null,"Повторяемость уборки за смену"]
[]
[null,null,"Нормативная трудоемкость обслуживания, чел.-ч",{"$nulls":5},{"$f":"IF($G$79=\"\",$G$77/100*$H$73,$G$77/100*$H$73*IFERROR(VLOOKUP('Коэффициенты повторяемости'!$K$9,'Коэффициенты повторяемости'!$O$3:$P$102,2,FALSE),0))","v":{"v":0,"d":"0.00"}},{"$nulls":20},"норма времени обслуживания"]
[]
[null,null,"Нормативная обслуживаемая площадь, м2",{"$nulls":4},{"$f":"IFERROR(IF(G79=\"\",F75*$U$53*$U$55,F75*$U$53*$U$55*IFERROR(VLOOKUP('Коэффициенты повторяемости'!K10,'Коэффициенты повторяемости'!$O$3:$P$102,2,FALSE),0)),0)","v":{"v":0,"d":"0.0"}},{"$f":"IF(AND(F67=\"\",F69=\"\"),\"Укажите количество унитазов и раковин\",IF(F67=\"\",\"Укажите количество унитазов\",IF(F69=\"\",\"Укажите количество раковин\",\"\")))","v":"Укажите количество унитазов и раковин"},{"$nulls":20},"норма обслуживания"]
[]
[null,null,"Мужские туалеты, ед."]
[]
[null,null,"Количество унитазов, ед."]
[]
[null,null,"Количество раковин, ед."]
[]
[null,null,"Количество писсуаров, ед."]
[{"$nulls":5},","]
[null,null,"Вид работ и способ уборки туалета"]
[]
[null,null,"Норма времени обслуживания 100 м2, чел.-ч",{"$nulls":4},{"$f":"IFERROR(VLOOKUP($T$10,$X$6:$AA$11,2,FALSE),0)","v":{"v":0,"d":"0.00"}}]
[]
[null,null,"Норма обслуживания, м2",null,null,{"$f":"IFERROR(VLOOKUP($T$10,$X$6:$AA$11,4,FALSE),0)","v":{"v":0,"d":"0.0"}},{"$nulls":23},"норма времени обслуживания"]
[]
[null,null,"Площадь мужских туалетов, м2",{"$nulls":26},"норма обслуживания"]
[]
[null,null,"Повторяемость уборки за смену"]
[]
[null,null,"Нормативная трудоемкость обслуживания, чел.-ч",{"$nulls":5},{"$f":"IF($G$101=\"\",$G$99/100*$H$95,$G$99/100*$H$95*IFERROR(VLOOKUP('Коэффициенты повторяемости'!$K$11,'Коэффициенты повторяемости'!$O$3:$P$102,2,FALSE),0))","v":{"v":0,"d":"0.00"}}]
[]
[null,null,"Нормативная обслуживаемая площадь, м2",{"$nulls":4},{"$f":"IFERROR(IF($G$101=\"\",$F$97*U$73*U$75*$U$77,$F$97*$U$73*$U$75*$U$77*IFERROR(VLOOKUP('Коэффициенты повторяемости'!$K$12,'Коэффициенты повторяемости'!$O$3:$P$102,2,FALSE),0)),0)","v":{"v":0,"d":"0.0"}},{"$f":"IF(AND(F87=\"\",F89=\"\",F91=\"\"),\"Укажите количество унитазов, раковин, писсуаров\",IF(F87=\"\",\"Укажите количество унитазов\",IF(F89=\"\",\"Укажите количество раковин\",IF(F91=\"\",\"Укажите количество писсуаров\",\"\"))))","v":"Укажите количество унитазов, раковин, писсуаров"}]
[]
[null,null,"Душевые комнаты, ед."]
[]
[null,null,"Вид работ и способ уборки душевых комнат"]
[]
[null,null,"Норма времени обслуживания 100 м2, чел.-ч",{"$nulls":4},{"$f":"IFERROR(VLOOKUP($T$11,$X$6:$AA$11,2,FALSE),0)","v":{"v":0,"d":"0.00"}},{"$nulls":21},"норма времени обслуживания"]
[]
[null,null,"Норма обслуживания, м2",null,null,{"$f":"IFERROR(VLOOKUP($T$11,$X$6:$AA$11,4,FALSE),0)","v":{"v":0,"d":"0.0"}},{"$nulls":23},"норма обслуживания"]
[]
[null,null,"Площадь душевых комнат, м2"]
[]
[null,null,"Повторяемость уборки за смену"]
[]
[null,null,"Нормативная трудоемкость обслуживания, чел.-ч",{"$nulls":5},{"$f":"IF($G$117=\"\",$G$115/100*$H$111,$G$115/100*$H$111*IFERROR(VLOOKUP('Коэффициенты повторяемости'!$K$13,'Коэффициенты повторяемости'!$O$3:$P$102,2,FALSE),0))","v":{"v":0,"d":"0.00"}}]
[]
[null,null,"Нормативная обслуживаемая площадь, м2",{"$nulls":4},{"$f":"IF($G$117=\"\",$F$113,$F$113*IFERROR(VLOOKUP('Коэффициенты повторяемости'!$K$14,'Коэффициенты повторяемости'!$O$3:$P$102,2,FALSE),0))","v":{"v":0,"d":"0.0"}}]
[]
[null,null,"Уборка помещений на производствах, дающих древесные отходы (2-я группа)"]
[{"$nulls":21},"-"]
[null,null,"Виды работ и способы уборки\n",{"$nulls":17},"Подметание пола без предварительного увлажнения со сбором отходов в проходах и между рабочими местами","До 30","Подметание пола без предварительного увлажнения со сбором отходов в проходах и между рабочими местами","До 30","Норма времени обслуживания",null,{"$f":"CONCATENATE(W125,X125,Y125)","v":"Подметание пола без предварительного увлажнения со сбором отходов в проходах и между рабочими местамиДо 30Норма времени обслуживания"},0.59,{"$f":"CONCATENATE($G$125,$K$127,$T$129)","v":"норма времени обслуживания"}]
[{"$nulls":20},"Подметание пола без предварительного увлажнения со сбором отходов в проходах, между рабочими местами и от рабочих мест","Свыше 30","Подметание пола без предварительного увлажнения со сбором отходов в проходах и между рабочими местами","До 30","Норма обслуживания",null,{"$f":"CONCATENATE(W126,X126,Y126)","v":"Подметание пола без предварительного увлажнения со сбором отходов в проходах и между рабочими местамиДо 30Норма обслуживания"},1355,{"$f":"CONCATENATE($G$125,$K$127,$T$130)","v":"норма обслуживания"}]
[null,null,"Масса отходов и мусора со 100 м2 убираемой площади в смену, кг",{"$nulls":17},"Подметание пола с предварительным увлажнением со сбором отходов в проходах и между рабочими местами",null,"Подметание пола без предварительного увлажнения со сбором отходов в проходах и между рабочими местами","Свыше 30","Норма времени обслуживания",null,{"$f":"CONCATENATE(W127,X127,Y127)","v":"Подметание пола без предварительного увлажнения со сбором отходов в проходах и между рабочими местамиСвыше 30Норма времени обслуживания"},1.05,{"$f":"CONCATENATE($G$141,$K$143,$T$145)","v":"норма времени обслуживания"}]
[{"$nulls":20},"Подметание пола с предварительным увлажнением со сбором отходов в проходах, между рабочими местами и от рабочих мест",null,"Подметание пола без предварительного увлажнения со сбором отходов в проходах и между рабочими местами","Свыше 30","Норма обслуживания",null,"Подметание пола без предварительного увлажнения со сбором отходов в проходах и между рабочими местамиСвыше 30Норма обслуживания",760,{"$f":"CONCATENATE($G$141,$K$143,$T$146)","v":"норма обслуживания"}]
[null,null,"Норма времени обслуживания 100 м2, чел.-ч",{"$nulls":4},{"$f":"IFERROR(VLOOKUP($AC$125,$AA$125:$AB$142,2,FALSE),0)","v":{"v":0,"d":"0.00"}},{"$nulls":11},"норма времени обслуживания","Мытье пола с применением моющих средств",null,"Подметание пола без предварительного увлажнения со сбором отходов в проходах, между рабочими местами и от рабочих мест","До 30","Норма времени обслуживания",null,"Подметание пола без предварительного увлажнения со сбором отходов в проходах, между рабочими местами и от рабочих местДо 30Норма времени обслуживания",0.72,{"$f":"CONCATENATE($G$157,$K$159,$T$161)","v":"норма времени обслуживания"}]
[{"$nulls":19},"норма обслуживания",null,null,"Подметание пола без предварительного увлажнения со сбором отходов в проходах, между рабочими местами и от рабочих мест","До 30","Норма обслуживания",null,"Подметание пола без предварительного увлажнения со сбором отходов в проходах, между рабочими местами и от рабочих местДо 30Норма обслуживания",1110,{"$f":"CONCATENATE($G$157,$K$159,$T$162)","v":"норма обслуживания"}]
[null,null,"Норма обслуживания, м2",null,null,{"$f":"IFERROR(VLOOKUP($AC$126,$AA$125:$AB$142,2,FALSE),0)","v":{"v":0,"d":"0.0"}},"Ширина проходов между оборудованием, м",{"$nulls":15},"Подметание пола без предварительного увлажнения со сбором отходов в проходах, между рабочими местами и от рабочих мест","Свыше 30","Норма времени обслуживания",null,"Подметание пола без предварительного увлажнения со сбором отходов в проходах, между рабочими местами и от рабочих местСвыше 30Норма времени обслуживания",1.3,{"$f":"CONCATENATE($G$173,$K$175,$T$177)","v":"норма времени обслуживания"}]
[{"$nulls":22},"Подметание пола без предварительного увлажнения со сбором отходов в проходах, между рабочими местами и от рабочих мест","Свыше 30","Норма обслуживания",null,"Подметание пола без предварительного увлажнения со сбором отходов в проходах, между рабочими местами и от рабочих местСвыше 30Норма обслуживания",615,{"$f":"CONCATENATE($G$173,$K$175,$T$178)","v":"норма обслуживания"}]
[null,null,"Площадь помещения, м2",{"$nulls":19},"Подметание пола с предварительным увлажнением со сбором отходов в проходах и между рабочими местами","До 30","Норма времени обслуживания",null,"Подметание пола с предварительным увлажнением со сбором отходов в проходах и между рабочими местамиДо 30Норма времени обслуживания",0.65,{"$f":"CONCATENATE($G$189,$K$191,$T$193)","v":"норма времени обслуживания"}]
[{"$nulls":22},"Подметание пола с предварительным увлажнением со сбором отходов в проходах и между рабочими местами","До 30","Норма обслуживания",null,"Подметание пола с предварительным увлажнением со сбором отходов в проходах и между рабочими местамиДо 30Норма обслуживания",1230,{"$f":"CONCATENATE($G$189,$K$191,$T$194)","v":"норма обслуживания"}]
[null,null,"Повторяемость уборки за смену",{"$nulls":19},"Подметание пола с предварительным увлажнением со сбором отходов в проходах и между рабочими местами","Свыше 30","Норма времени обслуживания",null,"Подметание пола с предварительным увлажнением со сбором отходов в проходах и между рабочими местамиСвыше 30Норма времени обслуживания",0.8]
[{"$nulls":22},"Подметание пола с предварительным увлажнением со сбором отходов в проходах и между рабочими местами","Свыше 30","Норма обслуживания",null,"Подметание пола с предварительным увлажнением со сбором отходов в проходах и между рабочими местамиСвыше 30Норма обслуживания",1000]
[null,null,"Нормативная трудоемкость обслуживания, чел.-ч",{"$nulls":5},{"$f":"IF(G135=\"\",F133/100*H129,F133/100*H129*IFERROR(VLOOKUP('Коэффициенты повторяемости'!$K$15,'Коэффициенты повторяемости'!$O$3:$P$102,2,FALSE),0))","v":{"v":0,"d":"0.00"}},{"$nulls":13},"Подметание пола с предварительным увлажнением со сбором отходов в проходах, между рабочими местами и от рабочих мест","До 30","Норма времени обслуживания",null,"Подметание пола с предварительным увлажнением со сбором отходов в проходах, между рабочими местами и от рабочих местДо 30Норма времени обслуживания",0.79]
[{"$nulls":22},"Подметание пола с предварительным увлажнением со сбором отходов в проходах, между рабочими местами и от рабочих мест","До 30","Норма обслуживания",null,"Подметание пола с предварительным увлажнением со сбором отходов в проходах, между рабочими местами и от рабочих местДо 30Норма обслуживания",1013]
[null,null,"Нормативная обслуживаемая площадь, м2",{"$nulls":4},{"$f":"IF(L131=\"\",0,IF(L131<1,IF(G135=\"\",F131,F131*IFERROR(VLOOKUP('Коэффициенты повторяемости'!$K$16,'Коэффициенты повторяемости'!$O$3:$P$102,2,FALSE),0))*0.85,IF(L131>=1,IF(G135=\"\",F131,F131*IFERROR(VLOOKUP('Коэффициенты повторяемости'!$K$16,'Коэффициенты повторяемости'!$O$3:$P$102,2,FALSE),0)))))","v":{"v":0,"d":"0.0"}},{"$f":"IF(L131=\"\",\"Укажите ширину прохода между оборудованием\",\"\")","v":"Укажите ширину прохода между оборудованием"},{"$nulls":13},"Подметание пола с предварительным увлажнением со сбором отходов в проходах, между рабочими местами и от рабочих мест","Свыше 30","Норма времени обслуживания",null,"Подметание пола с предварительным увлажнением со сбором отходов в проходах, между рабочими местами и от рабочих местСвыше 30Норма времени обслуживания",1]
[{"$nulls":22},"Подметание пола с предварительным увлажнением со сбором отходов в проходах, между рабочими местами и от рабочих мест","Свыше 30","Норма обслуживания",null,{"$f":"CONCATENATE(W140,X140,Y140)","v":"Подметание пола с предварительным увлажнением со сбором отходов в проходах, между рабочими местами и от рабочих местСвыше 30Норма обслуживания"},800]
[null,null,"Виды работ и способы уборки\n",{"$nulls":19},"Мытье пола с применением моющих средств","-","Норма времени обслуживания",null,{"$f":"CONCATENATE(W141,X141,Y141)","v":"Мытье пола с применением моющих средств-Норма времени обслуживания"},1.3]
[{"$nulls":22},"Мытье пола с применением моющих средств","-","Норма обслуживания",null,"Мытье пола с применением моющих средств-Норма обслуживания",615]
[null,null,"Масса отходов и мусора со 100 м2 убираемой площади в смену, кг"]
[]
[null,null,"Норма времени обслуживания 100 м2, чел.-ч",{"$nulls":4},{"$f":"IFERROR(VLOOKUP($AC$127,$AA$125:$AB$142,2,FALSE),0)","v":{"v":0,"d":"0.00"}},{"$nulls":11},"норма времени обслуживания",null,"-"]
[{"$nulls":19},"норма обслуживания"]
[null,null,"Норма обслуживания, м2",null,null,{"$f":"IFERROR(VLOOKUP($AC$128,$AA$125:$AB$142,2,FALSE),0)","v":{"v":0,"d":"0.00"}},"Ширина проходов между оборудованием, м"]
[]
[null,null,"Площадь помещения, м2"]
[]
[null,null,"Повторяемость уборки за смену"]
[]
[null,null,"Нормативная трудоемкость обслуживания, чел.-ч",{"$nulls":5},{"$f":"IF(G151=\"\",F149/100*H145,F149/100*H145*IFERROR(VLOOKUP('Коэффициенты повторяемости'!$K$17,'Коэффициенты повторяемости'!$O$3:$P$102,2,FALSE),0))","v":{"v":0,"d":"0.00"}}]
[]
[null,null,"Нормативная обслуживаемая площадь, м2",{"$nulls":4},{"$f":"IF(L147=\"\",0,IF(L147<1,IF(G151=\"\",F147,F147*IFERROR(VLOOKUP('Коэффициенты повторяемости'!$K$18,'Коэффициенты повторяемости'!$O$3:$P$102,2,FALSE),0))*0.85,IF(L147>=1,IF(G151=\"\",F147,F147*IFERROR(VLOOKUP('Коэффициенты повторяемости'!$K$18,'Коэффициенты повторяемости'!$O$3:$P$102,2,FALSE),0)))))","v":{"v":0,"d":"0.0"}},{"$f":"IF(L147=\"\",\"Укажите ширину прохода между оборудованием\",\"\")","v":"Укажите ширину прохода между оборудованием"}]
[]
[null,null,"Виды работ и способы уборки\n"]
[]
[null,null,"Масса отходов и мусора со 100 м2 убираемой площади в смену, кг"]
[]
[null,null,"Норма времени обслуживания 100 м2, чел.-ч",{"$nulls":4},{"$f":"IFERROR(VLOOKUP($AC$129,$AA$125:$AB$142,2,FALSE),0)","v":{"v":0,"d":"0.00"}},{"$nulls":11},"норма времени обслуживания"]
[{"$nulls":19},"норма обслуживания"]
[null,null,"Норма обслуживания, м2",null,null,{"$f":"IFERROR(VLOOKUP($AC$130,$AA$125:$AB$142,2,FALSE),0)","v":{"v":0,"d":"0.00"}},"Ширина проходов между оборудованием, м"]
[]
[null,null,"Площадь помещения, м2"]
[]
[null,null,"Повторяемость уборки за смену"]
[]
[null,null,"Нормативная трудоемкость обслуживания, чел.-ч",{"$nulls":5},{"$f":"IF(G167=\"\",F165/100*H161,F165/100*H161*IFERROR(VLOOKUP('Коэффициенты повторяемости'!$K$19,'Коэффициенты повторяемости'!$O$3:$P$102,2,FALSE),0))","v":{"v":0,"d":"0.00"}}]
[]
[null,null,"Нормативная обслуживаемая площадь, м2",{"$nulls":4},{"$f":"IF(L163=\"\",0,IF(L163<1,IF(G167=\"\",F163,F163*IFERROR(VLOOKUP('Коэффициенты повторяемости'!$K$20,'Коэффициенты повторяемости'!$O$3:$P$102,2,FALSE),0))*0.85,IF(L163>=1,IF(G167=\"\",F163,F163*IFERROR(VLOOKUP('Коэффициенты повторяемости'!$K$20,'Коэффициенты повторяемости'!$O$3:$P$102,2,FALSE),0)))))","v":{"v":0,"d":"0.0"}},{"$f":"IF(L163=\"\",\"Укажите ширину прохода между оборудованием\",\"\")","v":"Укажите ширину прохода между оборудованием"}]
[]
[null,null,"Виды работ и способы уборки\n"]
[]
[null,null,"Масса отходов и мусора со 100 м2 убираемой площади в смену, кг"]
[]
[null,null,"Норма времени обслуживания 100 м2, чел.-ч",{"$nulls":4},{"$f":"IFERROR(VLOOKUP($AC$131,$AA$125:$AB$142,2,FALSE),0)","v":{"v":0,"d":"0.00"}},{"$nulls":11},"норма времени обслуживания"]
[{"$nulls":19},"норма обслуживания"]
[null,null,"Норма обслуживания, м2",null,null,{"$f":"IFERROR(VLOOKUP($AC$132,$AA$125:$AB$142,2,FALSE),0)","v":{"v":0,"d":"0.00"}},"Ширина проходов между оборудованием, м"]
[]
[null,null,"Площадь помещения, м2"]
[]
[null,null,"Повторяемость уборки за смену"]
[]
[null,null,"Нормативная трудоемкость обслуживания, чел.-ч",{"$nulls":5},{"$f":"IF(G183=\"\",F181/100*H177,F181/100*H177*IFERROR(VLOOKUP('Коэффициенты повторяемости'!$K$21,'Коэффициенты повторяемости'!$O$3:$P$102,2,FALSE),0))","v":{"v":0,"d":"0.00"}}]
[]
[null,null,"Нормативная обслуживаемая площадь, м2",{"$nulls":4},{"$f":"IF(L179=\"\",0,IF(L179<1,IF(G183=\"\",F179,F179*IFERROR(VLOOKUP('Коэффициенты повторяемости'!$K$22,'Коэффициенты повторяемости'!$O$3:$P$102,2,FALSE),0))*0.85,IF(L179>=1,IF(G183=\"\",F179,F179*IFERROR(VLOOKUP('Коэффициенты повторяемости'!$K$22,'Коэффициенты повторяемости'!$O$3:$P$102,2,FALSE),0)))))","v":{"v":0,"d":"0.0"}},{"$f":"IF(L179=\"\",\"Укажите ширину прохода между оборудованием\",\"\")","v":"Укажите ширину прохода между оборудованием"}]
[]
[null,null,"Виды работ и способы уборки\n"]
[]
[null,null,"Масса отходов и мусора со 100 м2 убираемой площади в смену, кг"]
[]
[null,null,"Норма времени обслуживания 100 м2, чел.-ч",{"$nulls":4},{"$f":"IFERROR(VLOOKUP($AC$133,$AA$125:$AB$142,2,FALSE),0)","v":{"v":0,"d":"0.00"}},{"$nulls":11},"норма времени обслуживания"]
[{"$nulls":19},"норма обслуживания"]
[null,null,"Норма обслуживания, м2",null,null,{"$f":"IFERROR(VLOOKUP($AC$134,$AA$125:$AB$142,2,FALSE),0)","v":{"v":0,"d":"0.00"}},"Ширина проходов между оборудованием, м"]
[]
[null,null,"Площадь помещения, м2"]
[]
[null,null,"Повторяемость уборки за смену"]
[]
[null,null,"Нормативная трудоемкость обслуживания, чел.-ч",{"$nulls":5},{"$f":"IF(G199=\"\",F197/100*H193,F197/100*H193*IFERROR(VLOOKUP('Коэффициенты повторяемости'!$K$23,'Коэффициенты повторяемости'!$O$3:$P$102,2,FALSE),0))","v":{"v":0,"d":"0.00"}}]
[]
[null,null,"Нормативная обслуживаемая площадь, м2",{"$nulls":4},{"$f":"IF(L195=\"\",0,IF(L195<1,IF(G199=\"\",F195,F195*IFERROR(VLOOKUP('Коэффициенты повторяемости'!$K$24,'Коэффициенты повторяемости'!$O$3:$P$102,2,FALSE),0))*0.85,IF(L195>=1,IF(G199=\"\",F195,F195*IFERROR(VLOOKUP('Коэффициенты повторяемости'!$K$24,'Коэффициенты повторяемости'!$O$3:$P$102,2,FALSE),0)))))","v":{"v":0,"d":"0.0"}},{"$f":"IF(L195=\"\",\"Укажите ширину прохода между оборудованием\",\"\")","v":"Укажите ширину прохода между оборудованием"}]
[{"$nulls":21},"-"]
[null,null,"Уборка помещений на производствах, дающих легковесные, жидкие, сыпучие, мелкогабаритные производственные отходы (3-я группа)",{"$nulls":17},"Подметание пола без предварительного увлажнения со сбором отходов в проходах и между рабочими местами","До 8","Подметание пола без предварительного увлажнения со сбором отходов в проходах и между рабочими местами","норма времени обслуживания","До 8",null,{"$f":"CONCATENATE(W205,X205,Y205)","v":"Подметание пола без предварительного увлажнения со сбором отходов в проходах и между рабочими местаминорма времени обслуживанияДо 8"},0.35,{"$f":"CONCATENATE($G$207,$T$211,$K$209)","v":"норма времени обслуживания"}]
[{"$nulls":20},"Подметание пола без предварительного увлажнения со сбором отходов в проходах, между рабочими местами и от рабочих мест","9-18","Подметание пола без предварительного увлажнения со сбором отходов в проходах и между рабочими местами","норма обслуживания","До 8",null,{"$f":"CONCATENATE(W206,X206,Y206)","v":"Подметание пола без предварительного увлажнения со сбором отходов в проходах и между рабочими местаминорма обслуживанияДо 8"},2285,{"$f":"CONCATENATE($G$207,$T$212,$K$209)","v":"норма обслуживания"}]
[null,null,"Виды работ и способы уборки\n",{"$nulls":17},"Подметание пола с предварительным увлажнением со сбором отходов в проходах и между рабочими местами","19-39","Подметание пола без предварительного увлажнения со сбором отходов в проходах и между рабочими местами","норма времени обслуживания","9-18",null,"Подметание пола без предварительного увлажнения со сбором отходов в проходах и между рабочими местаминорма времени обслуживания9-18",0.42,{"$f":"CONCATENATE($G$223,$T$227,$K$225)","v":"норма времени обслуживания"}]
[{"$nulls":20},"Подметание пола с предварительным увлажнением со сбором отходов в проходах, между рабочими местами и от рабочих мест",null,"Подметание пола без предварительного увлажнения со сбором отходов в проходах и между рабочими местами","норма обслуживания","9-18",null,"Подметание пола без предварительного увлажнения со сбором отходов в проходах и между рабочими местаминорма обслуживания9-18",1905,{"$f":"CONCATENATE($G$223,$T$228,$K$225)","v":"норма обслуживания"}]
[null,null,"Масса отходов и мусора со 100 м2 убираемой площади в смену, кг",{"$nulls":17},"Мытье пола с применением моющих средств",null,"Подметание пола без предварительного увлажнения со сбором отходов в проходах и между рабочими местами","норма времени обслуживания","19-39",null,"Подметание пола без предварительного увлажнения со сбором отходов в проходах и между рабочими местаминорма времени обслуживания19-39",0.55,{"$f":"CONCATENATE($G$239,$T$243,$K$241)","v":"норма времени обслуживания"}]
[{"$nulls":20},"Мытье пола с помощью шланга и с применением при необходимости щетки или скребка",null,"Подметание пола без предварительного увлажнения со сбором отходов в проходах и между рабочими местами","норма обслуживания","19-39",null,"Подметание пола без предварительного увлажнения со сбором отходов в проходах и между рабочими местаминорма обслуживания19-39",1455,{"$f":"CONCATENATE($G$239,$T$244,$K$241)","v":"норма обслуживания"}]
[null,null,"Норма времени обслуживания 100 м2, чел.-ч",{"$nulls":4},{"$f":"IFERROR(VLOOKUP($AC$205,$AA$205:$AB$244,2,FALSE),0)","v":{"v":0,"d":"0.00"}},{"$nulls":11},"норма времени обслуживания","Подметание пола с применением опилок со сбором отходов в проходах и между рабочими местами",null,"Подметание пола без предварительного увлажнения со сбором отходов в проходах, между рабочими местами и от рабочих мест","норма времени обслуживания","До 8",null,"Подметание пола без предварительного увлажнения со сбором отходов в проходах, между рабочими местами и от рабочих местнорма времени обслуживанияДо 8",0.44,{"$f":"CONCATENATE($G$255,$T$259,$K$257)","v":"норма времени обслуживания"}]
[{"$nulls":19},"норма обслуживания","Подметание пола с применением опилок со сбором отходов в проходах, между рабочими местами и от рабочих мест",null,"Подметание пола без предварительного увлажнения со сбором отходов в проходах, между рабочими местами и от рабочих мест","норма обслуживания","До 8",null,"Подметание пола без предварительного увлажнения со сбором отходов в проходах, между рабочими местами и от рабочих местнорма обслуживанияДо 8",1820,{"$f":"CONCATENATE($G$255,$T$260,$K$257)","v":"норма обслуживания"}]
[null,null,"Норма обслуживания, м2",null,null,{"$f":"IFERROR(VLOOKUP($AC$206,$AA$205:$AB$244,2,FALSE),0)","v":{"v":0,"d":"0.00"}},"Ширина проходов между оборудованием, м",{"$nulls":15},"Подметание пола без предварительного увлажнения со сбором отходов в проходах, между рабочими местами и от рабочих мест","норма времени обслуживания","9-18",null,"Подметание пола без предварительного увлажнения со сбором отходов в проходах, между рабочими местами и от рабочих местнорма времени обслуживания9-18",0.51,{"$f":"CONCATENATE($G$271,$T$275,$K$273)","v":"норма времени обслуживания"}]
[{"$nulls":22},"Подметание пола без предварительного увлажнения со сбором отходов в проходах, между рабочими местами и от рабочих мест","норма обслуживания","9-18",null,"Подметание пола без предварительного увлажнения со сбором отходов в проходах, между рабочими местами и от рабочих местнорма обслуживания9-18",1570,{"$f":"CONCATENATE($G$271,$T$276,$K$273)","v":"норма обслуживания"}]
[null,null,"Площадь помещения, м2",{"$nulls":19},"Подметание пола без предварительного увлажнения со сбором отходов в проходах, между рабочими местами и от рабочих мест","норма времени обслуживания","19-39",null,"Подметание пола без предварительного увлажнения со сбором отходов в проходах, между рабочими местами и от рабочих местнорма времени обслуживания19-39",0.67,{"$f":"CONCATENATE($G$287,$T$291,$K$289)","v":"норма времени обслуживания"}]
[{"$nulls":22},"Подметание пола без предварительного увлажнения со сбором отходов в проходах, между рабочими местами и от рабочих мест","норма обслуживания","19-39",null,"Подметание пола без предварительного увлажнения со сбором отходов в проходах, между рабочими местами и от рабочих местнорма обслуживания19-39",1195,{"$f":"CONCATENATE($G$287,$T$292,$K$289)","v":"норма обслуживания"}]
[null,null,"Повторяемость уборки за смену",{"$nulls":19},"Подметание пола с предварительным увлажнением со сбором отходов в проходах и между рабочими местами","норма времени обслуживания","До 8",null,"Подметание пола с предварительным увлажнением со сбором отходов в проходах и между рабочими местаминорма времени обслуживанияДо 8",0.37,{"$f":"CONCATENATE($G$303,$T$307,$K$305)","v":"норма времени обслуживания"}]
[{"$nulls":22},"Подметание пола с предварительным увлажнением со сбором отходов в проходах и между рабочими местами","норма обслуживания","До 8",null,"Подметание пола с предварительным увлажнением со сбором отходов в проходах и между рабочими местаминорма обслуживанияДо 8",2160,{"$f":"CONCATENATE($G$303,$T$308,$K$305)","v":"норма обслуживания"}]
[null,null,"Нормативная трудоемкость обслуживания, чел.-ч",{"$nulls":5},{"$f":"IF(G217=\"\",F215/100*H211,F215/100*H211*IFERROR(VLOOKUP('Коэффициенты повторяемости'!$K$25,'Коэффициенты повторяемости'!$O$3:$P$102,2,FALSE),0))","v":{"v":0,"d":"0.00"}},{"$nulls":13},"Подметание пола с предварительным увлажнением со сбором отходов в проходах и между рабочими местами","норма времени обслуживания","9-18",null,"Подметание пола с предварительным увлажнением со сбором отходов в проходах и между рабочими местаминорма времени обслуживания9-18",0.45,{"$f":"CONCATENATE($G$319,$T$323,$K$321)","v":"норма времени обслуживания"}]
[{"$nulls":22},"Подметание пола с предварительным увлажнением со сбором отходов в проходах и между рабочими местами","норма обслуживания","9-18",null,"Подметание пола с предварительным увлажнением со сбором отходов в проходах и между рабочими местаминорма обслуживания9-18",1775,{"$f":"CONCATENATE($G$319,$T$324,$K$321)","v":"норма обслуживания"}]
[null,null,"Нормативная обслуживаемая площадь, м2",{"$nulls":4},{"$f":"IF(L213=\"\",0,IF(L213<1,IF(G217=\"\",F213,F213*IFERROR(VLOOKUP('Коэффициенты повторяемости'!$K$26,'Коэффициенты повторяемости'!$O$3:$P$102,2,FALSE),0))*0.85,IF(L213>=1,IF(G217=\"\",F213,F213*IFERROR(VLOOKUP('Коэффициенты повторяемости'!$K$26,'Коэффициенты повторяемости'!$O$3:$P$102,2,FALSE),0)))))","v":{"v":0,"d":"0.0"}},{"$f":"IF(L213=\"\",\"Укажите ширину прохода между оборудованием\",\"\")","v":"Укажите ширину прохода между оборудованием"},{"$nulls":13},"Подметание пола с предварительным увлажнением со сбором отходов в проходах и между рабочими местами","норма времени обслуживания","19-39",null,"Подметание пола с предварительным увлажнением со сбором отходов в проходах и между рабочими местаминорма времени обслуживания19-39",0.58]
[{"$nulls":22},"Подметание пола с предварительным увлажнением со сбором отходов в проходах и между рабочими местами","норма обслуживания","19-39",null,"Подметание пола с предварительным увлажнением со сбором отходов в проходах и между рабочими местаминорма обслуживания19-39",1380]
[null,null,"Виды работ и способы уборки\n",{"$nulls":19},"Подметание пола с предварительным увлажнением со сбором отходов в проходах, между рабочими местами и от рабочих мест","норма времени обслуживания","До 8",null,"Подметание пола с предварительным увлажнением со сбором отходов в проходах, между рабочими местами и от рабочих местнорма времени обслуживанияДо 8",0.46]
[{"$nulls":22},"Подметание пола с предварительным увлажнением со сбором отходов в проходах, между рабочими местами и от рабочих мест","норма обслуживания","До 8",null,"Подметание пола с предварительным увлажнением со сбором отходов в проходах, между рабочими местами и от рабочих местнорма обслуживанияДо 8",1740]
[null,null,"Масса отходов и мусора со 100 м2 убираемой площади в смену, кг",{"$nulls":19},"Подметание пола с предварительным увлажнением со сбором отходов в проходах, между рабочими местами и от рабочих мест","норма времени обслуживания","9-18",null,"Подметание пола с предварительным увлажнением со сбором отходов в проходах, между рабочими местами и от рабочих местнорма времени обслуживания9-18",0.54]
[{"$nulls":22},"Подметание пола с предварительным увлажнением со сбором отходов в проходах, между рабочими местами и от рабочих мест","норма обслуживания","9-18",null,"Подметание пола с предварительным увлажнением со сбором отходов в проходах, между рабочими местами и от рабочих местнорма обслуживания9-18",1480]
[null,null,"Норма времени обслуживания 100 м2, чел.-ч",{"$nulls":4},{"$f":"IFERROR(VLOOKUP($AC$207,$AA$205:$AB$244,2,FALSE),0)","v":{"v":0,"d":"0.00"}},{"$nulls":11},"норма времени обслуживания",null,null,"Подметание пола с предварительным увлажнением со сбором отходов в проходах, между рабочими местами и от рабочих мест","норма времени обслуживания","19-39",null,"Подметание пола с предварительным увлажнением со сбором отходов в проходах, между рабочими местами и от рабочих местнорма времени обслуживания19-39",0.71]
[{"$nulls":19},"норма обслуживания",null,null,"Подметание пола с предварительным увлажнением со сбором отходов в проходах, между рабочими местами и от рабочих мест","норма обслуживания","19-39",null,"Подметание пола с предварительным увлажнением со сбором отходов в проходах, между рабочими местами и от рабочих местнорма обслуживания19-39",1125]
[null,null,"Норма обслуживания, м2",null,null,{"$f":"IFERROR(VLOOKUP($AC$208,$AA$205:$AB$244,2,FALSE),0)","v":{"v":0,"d":"0.00"}},"Ширина проходов между оборудованием, м",{"$nulls":15},"Мытье пола с применением моющих средств","норма времени обслуживания","-",null,"Мытье пола с применением моющих средствнорма времени обслуживания-",0.88]
[{"$nulls":22},"Мытье пола с применением моющих средств","норма обслуживания","-",null,"Мытье пола с применением моющих средствнорма обслуживания-",910]
[null,null,"Площадь помещения, м2",{"$nulls":19},"Мытье пола с помощью шланга и с применением при необходимости щетки или скребка","норма времени обслуживания","-",null,"Мытье пола с помощью шланга и с применением при необходимости щетки или скребканорма времени обслуживания-",0.48]
[{"$nulls":22},"Мытье пола с помощью шланга и с применением при необходимости щетки или скребка","норма обслуживания","-",null,"Мытье пола с помощью шланга и с применением при необходимости щетки или скребканорма обслуживания-",1650]
[null,null,"Повторяемость уборки за смену",{"$nulls":19},"Подметание пола с применением опилок со сбором отходов в проходах и между рабочими местами","норма времени обслуживания","До 8",null,"Подметание пола с применением опилок со сбором отходов в проходах и между рабочими местаминорма времени обслуживанияДо 8",0.52]
[{"$nulls":22},"Подметание пола с применением опилок со сбором отходов в проходах и между рабочими местами","норма обслуживания","До 8",null,"Подметание пола с применением опилок со сбором отходов в проходах и между рабочими местаминорма обслуживанияДо 8",1540]
[null,null,"Нормативная трудоемкость обслуживания, чел.-ч",{"$nulls":5},{"$f":"IF(G233=\"\",F231/100*H227,F231/100*H227*IFERROR(VLOOKUP('Коэффициенты повторяемости'!$K$27,'Коэффициенты повторяемости'!$O$3:$P$102,2,FALSE),0))","v":{"v":0,"d":"0.00"}},{"$nulls":13},"Подметание пола с применением опилок со сбором отходов в проходах и между рабочими местами","норма времени обслуживания","9-18",null,"Подметание пола с применением опилок со сбором отходов в проходах и между рабочими местаминорма времени обслуживания9-18",0.56]
[{"$nulls":22},"Подметание пола с применением опилок со сбором отходов в проходах и между рабочими местами","норма обслуживания","9-18",null,"Подметание пола с применением опилок со сбором отходов в проходах и между рабочими местаминорма обслуживания9-18",1430]
[null,null,"Нормативная обслуживаемая площадь, м2",{"$nulls":4},{"$f":"IF(L229=\"\",0,IF(L229<1,IF(G233=\"\",F229,F229*IFERROR(VLOOKUP('Коэффициенты повторяемости'!$K$28,'Коэффициенты повторяемости'!$O$3:$P$102,2,FALSE),0))*0.85,IF(L229>=1,IF(G233=\"\",F229,F229*IFERROR(VLOOKUP('Коэффициенты повторяемости'!$K$28,'Коэффициенты повторяемости'!$O$3:$P$102,2,FALSE),0)))))","v":{"v":0,"d":"0.0"}},{"$f":"IF(L229=\"\",\"Укажите ширину прохода между оборудованием\",\"\")","v":"Укажите ширину прохода между оборудованием"},{"$nulls":13},"Подметание пола с применением опилок со сбором отходов в проходах и между рабочими местами","норма времени обслуживания","19-39",null,"Подметание пола с применением опилок со сбором отходов в проходах и между рабочими местаминорма времени обслуживания19-39",0.69]
[{"$nulls":22},"Подметание пола с применением опилок со сбором отходов в проходах и между рабочими местами","норма обслуживания","19-39",null,"Подметание пола с применением опилок со сбором отходов в проходах и между рабочими местаминорма обслуживания19-39",1160]
[null,null,"Виды работ и способы уборки\n",{"$nulls":19},"Подметание пола с применением опилок со сбором отходов в проходах, между рабочими местами и от рабочих мест","норма времени обслуживания","До 8",null,"Подметание пола с применением опилок со сбором отходов в проходах, между рабочими местами и от рабочих местнорма времени обслуживанияДо 8",0.62]
[{"$nulls":22},"Подметание пола с применением опилок со сбором отходов в проходах, между рабочими местами и от рабочих мест","норма обслуживания","До 8",null,"Подметание пола с применением опилок со сбором отходов в проходах, между рабочими местами и от рабочих местнорма обслуживанияДо 8",1290]
[null,null,"Масса отходов и мусора со 100 м2 убираемой площади в смену, кг",{"$nulls":19},"Подметание пола с применением опилок со сбором отходов в проходах, между рабочими местами и от рабочих мест","норма времени обслуживания","9-18",null,"Подметание пола с применением опилок со сбором отходов в проходах, между рабочими местами и от рабочих местнорма времени обслуживания9-18",0.67]
[{"$nulls":22},"Подметание пола с применением опилок со сбором отходов в проходах, между рабочими местами и от рабочих мест","норма обслуживания","9-18",null,"Подметание пола с применением опилок со сбором отходов в проходах, между рабочими местами и от рабочих местнорма обслуживания9-18",1195]
[null,null,"Норма времени обслуживания 100 м2, чел.-ч",{"$nulls":4},{"$f":"IFERROR(VLOOKUP($AC$209,$AA$205:$AB$244,2,FALSE),0)","v":{"v":0,"d":"0.00"}},{"$nulls":11},"норма времени обслуживания",null,null,"Подметание пола с применением опилок со сбором отходов в проходах, между рабочими местами и от рабочих мест","норма времени обслуживания","19-39",null,"Подметание пола с применением опилок со сбором отходов в проходах, между рабочими местами и от рабочих местнорма времени обслуживания19-39",0.83]
[{"$nulls":19},"норма обслуживания",null,null,"Подметание пола с применением опилок со сбором отходов в проходах, между рабочими местами и от рабочих мест","норма обслуживания","19-39",null,"Подметание пола с применением опилок со сбором отходов в проходах, между рабочими местами и от рабочих местнорма обслуживания19-39",965]
[null,null,"Норма обслуживания, м2",null,null,{"$f":"IFERROR(VLOOKUP($AC$210,$AA$205:$AB$244,2,FALSE),0)","v":{"v":0,"d":"0.00"}},"Ширина проходов между оборудованием, м"]
[]
[null,null,"Площадь помещения, м2"]
[]
[null,null,"Повторяемость уборки за смену"]
[]
[null,null,"Нормативная трудоемкость обслуживания, чел.-ч",{"$nulls":5},{"$f":"IF(G249=\"\",F247/100*H243,F247/100*H243*IFERROR(VLOOKUP('Коэффициенты повторяемости'!$K$29,'Коэффициенты повторяемости'!$O$3:$P$102,2,FALSE),0))","v":{"v":0,"d":"0.00"}}]
[]
[null,null,"Нормативная обслуживаемая площадь, м2",{"$nulls":4},{"$f":"IF(L245=\"\",0,IF(L245<1,IF(G249=\"\",F245,F245*IFERROR(VLOOKUP('Коэффициенты повторяемости'!$K$30,'Коэффициенты повторяемости'!$O$3:$P$102,2,FALSE),0))*0.85,IF(L245>=1,IF(G249=\"\",F245,F245*IFERROR(VLOOKUP('Коэффициенты повторяемости'!$K$30,'Коэффициенты повторяемости'!$O$3:$P$102,2,FALSE),0)))))","v":{"v":0,"d":"0.0"}},{"$f":"IF(L245=\"\",\"Укажите ширину прохода между оборудованием\",\"\")","v":"Укажите ширину прохода между оборудованием"}]
[]
[null,null,"Виды работ и способы уборки\n"]
[]
[null,null,"Масса отходов и мусора со 100 м2 убираемой площади в смену, кг"]
[]
[null,null,"Норма времени обслуживания 100 м2, чел.-ч",{"$nulls":4},{"$f":"IFERROR(VLOOKUP($AC$211,$AA$205:$AB$244,2,FALSE),0)","v":{"v":0,"d":"0.00"}},{"$nulls":11},"норма времени обслуживания"]
[{"$nulls":19},"норма обслуживания"]
[null,null,"Норма обслуживания, м2",null,null,{"$f":"IFERROR(VLOOKUP($AC$212,$AA$205:$AB$244,2,FALSE),0)","v":{"v":0,"d":"0.00"}},"Ширина проходов между оборудованием, м"]
[]
[null,null,"Площадь помещения, м2"]
[]
[null,null,"Повторяемость уборки за смену"]
[]
[null,null,"Нормативная трудоемкость обслуживания, чел.-ч",{"$nulls":5},{"$f":"IF(G265=\"\",F263/100*H259,F263/100*H259*IFERROR(VLOOKUP('Коэффициенты повторяемости'!$K$31,'Коэффициенты повторяемости'!$O$3:$P$102,2,FALSE),0))","v":{"v":0,"d":"0.00"}}]
[]
[null,null,"Нормативная обслуживаемая площадь, м2",{"$nulls":4},{"$f":"IF(L261=\"\",0,IF(L261<1,IF(G265=\"\",F261,F261*IFERROR(VLOOKUP('Коэффициенты повторяемости'!$K$32,'Коэффициенты повторяемости'!$O$3:$P$102,2,FALSE),0))*0.85,IF(L261>=1,IF(G265=\"\",F261,F261*IFERROR(VLOOKUP('Коэффициенты повторяемости'!$K$32,'Коэффициенты повторяемости'!$O$3:$P$102,2,FALSE),0)))))","v":{"v":0,"d":"0.0"}},{"$f":"IF(L261=\"\",\"Укажите ширину прохода между оборудованием\",\"\")","v":"Укажите ширину прохода между оборудованием"}]
[]
[null,null,"Виды работ и способы уборки\n"]
[]
[null,null,"Масса отходов и мусора со 100 м2 убираемой площади в смену, кг"]
[]
[null,null,"Норма времени обслуживания 100 м2, чел.-ч",{"$nulls":4},{"$f":"IFERROR(VLOOKUP($AC$213,$AA$205:$AB$244,2,FALSE),0)","v":{"v":0,"d":"0.00"}},{"$nulls":11},"норма времени обслуживания"]
[{"$nulls":19},"норма обслуживания"]
[null,null,"Норма обслуживания, м2",null,null,{"$f":"IFERROR(VLOOKUP($AC$214,$AA$205:$AB$244,2,FALSE),0)","v":{"v":0,"d":"0.00"}},"Ширина проходов между оборудованием, м"]
[]
[null,null,"Площадь помещения, м2"]
[]
[null,null,"Повторяемость уборки за смену"]
[]
[null,null,"Нормативная трудоемкость обслуживания, чел.-ч",{"$nulls":5},{"$f":"IF(G281=\"\",F279/100*H275,F279/100*H275*IFERROR(VLOOKUP('Коэффициенты повторяемости'!$K$33,'Коэффициенты повторяемости'!$O$3:$P$102,2,FALSE),0))","v":{"v":0,"d":"0.00"}}]
[]
[null,null,"Нормативная обслуживаемая площадь, м2",{"$nulls":4},{"$f":"IF(L277=\"\",0,IF(L277<1,IF(G281=\"\",F277,F277*IFERROR(VLOOKUP('Коэффициенты повторяемости'!$K$34,'Коэффициенты повторяемости'!$O$3:$P$102,2,FALSE),0))*0.85,IF(L277>=1,IF(G281=\"\",F277,F277*IFERROR(VLOOKUP('Коэффициенты повторяемости'!$K$34,'Коэффициенты повторяемости'!$O$3:$P$102,2,FALSE),0)))))","v":{"v":0,"d":"0.0"}},{"$f":"IF(L277=\"\",\"Укажите ширину прохода между оборудованием\",\"\")","v":"Укажите ширину прохода между оборудованием"}]
[]
[null,null,"Виды работ и способы уборки\n"]
[]
[null,null,"Масса отходов и мусора со 100 м2 убираемой площади в смену, кг"]
[]
[null,null,"Норма времени обслуживания 100 м2, чел.-ч",{"$nulls":4},{"$f":"IFERROR(VLOOKUP($AC$215,$AA$205:$AB$244,2,FALSE),0)","v":{"v":0,"d":"0.00"}},{"$nulls":11},"норма времени обслуживания"]
[{"$nulls":19},"норма обслуживания"]
[null,null,"Норма обслуживания, м2",null,null,{"$f":"IFERROR(VLOOKUP($AC$216,$AA$205:$AB$244,2,FALSE),0)","v":{"v":0,"d":"0.00"}},"Ширина проходов между оборудованием, м"]
[]
[null,null,"Площадь помещения, м2"]
[]
[null,null,"Повторяемость уборки за смену"]
[]
[null,null,"Нормативная трудоемкость обслуживания, чел.-ч",{"$nulls":5},{"$f":"IF(G297=\"\",F295/100*H291,F295/100*H291*IFERROR(VLOOKUP('Коэффициенты повторяемости'!$K$35,'Коэффициенты повторяемости'!$O$3:$P$102,2,FALSE),0))","v":{"v":0,"d":"0.00"}}]
[]
[null,null,"Нормативная обслуживаемая площадь, м2",{"$nulls":4},{"$f":"IF(L293=\"\",0,IF(L293<1,IF(G297=\"\",F293,F293*IFERROR(VLOOKUP('Коэффициенты повторяемости'!$K$36,'Коэффициенты повторяемости'!$O$3:$P$102,2,FALSE),0))*0.85,IF(L293>=1,IF(G297=\"\",F293,F293*IFERROR(VLOOKUP('Коэффициенты повторяемости'!$K$36,'Коэффициенты повторяемости'!$O$3:$P$102,2,FALSE),0)))))","v":{"v":0,"d":"0.0"}},{"$f":"IF(L293=\"\",\"Укажите ширину прохода между оборудованием\",\"\")","v":"Укажите ширину прохода между оборудованием"}]
[]
[null,null,"Виды работ и способы уборки\n"]
[]
[null,null,"Масса отходов и мусора со 100 м2 убираемой площади в смену, кг"]
[]
[null,null,"Норма времени обслуживания 100 м2, чел.-ч",{"$nulls":4},{"$f":"IFERROR(VLOOKUP($AC$217,$AA$205:$AB$244,2,FALSE),0)","v":{"v":0,"d":"0.00"}},{"$nulls":11},"норма времени обслуживания"]
[{"$nulls":19},"норма обслуживания"]
[null,null,"Норма обслуживания, м2",null,null,{"$f":"IFERROR(VLOOKUP($AC$218,$AA$205:$AB$244,2,FALSE),0)","v":{"v":0,"d":"0.00"}},"Ширина проходов между оборудованием, м"]
[]
[null,null,"Площадь помещения, м2"]
[]
[null,null,"Повторяемость уборки за смену"]
[]
[null,null,"Нормативная трудоемкость обслуживания, чел.-ч",{"$nulls":5},{"$f":"IF(G313=\"\",F311/100*H307,F311/100*H307*IFERROR(VLOOKUP('Коэффициенты повторяемости'!$K$37,'Коэффициенты повторяемости'!$O$3:$P$102,2,FALSE),0))","v":{"v":0,"d":"0.00"}}]
[]
[null,null,"Нормативная обслуживаемая площадь, м2",{"$nulls":4},{"$f":"IF(L309=\"\",0,IF(L309<1,IF(G313=\"\",F309,F309*IFERROR(VLOOKUP('Коэффициенты повторяемости'!$K$38,'Коэффициенты повторяемости'!$O$3:$P$102,2,FALSE),0))*0.85,IF(L309>=1,IF(G313=\"\",F309,F309*IFERROR(VLOOKUP('Коэффициенты повторяемости'!$K$38,'Коэффициенты повторяемости'!$O$3:$P$102,2,FALSE),0)))))","v":{"v":0,"d":"0.0"}},{"$f":"IF(L309=\"\",\"Укажите ширину прохода между оборудованием\",\"\")","v":"Укажите ширину прохода между оборудованием"}]
[]
[null,null,"Виды работ и способы уборки\n"]
[]
[null,null,"Масса отходов и мусора со 100 м2 убираемой площади в смену, кг"]
[]
[null,null,"Норма времени обслуживания 100 м2, чел.-ч",{"$nulls":4},{"$f":"IFERROR(VLOOKUP($AC$219,$AA$205:$AB$244,2,FALSE),0)","v":{"v":0,"d":"0.00"}},{"$nulls":11},"норма времени обслуживания"]
[{"$nulls":19},"норма обслуживания"]
[null,null,"Норма обслуживания, м2",null,null,{"$f":"IFERROR(VLOOKUP($AC$220,$AA$205:$AB$244,2,FALSE),0)","v":{"v":0,"d":"0.00"}},"Ширина проходов между оборудованием, м"]
[]
[null,null,"Площадь помещения, м2"]
[]
[null,null,"Повторяемость уборки за смену"]
[]
[null,null,"Нормативная трудоемкость обслуживания, чел.-ч",{"$nulls":5},{"$f":"IF(G329=\"\",F327/100*H323,F327/100*H323*IFERROR(VLOOKUP('Коэффициенты повторяемости'!$K$39,'Коэффициенты повторяемости'!$O$3:$P$102,2,FALSE),0))","v":{"v":0,"d":"0.00"}}]
[]
[null,null,"Нормативная обслуживаемая площадь, м2",{"$nulls":4},{"$f":"IF(L325=\"\",0,IF(L325<1,IF(G329=\"\",F325,F325*IFERROR(VLOOKUP('Коэффициенты повторяемости'!$K$40,'Коэффициенты повторяемости'!$O$3:$P$102,2,FALSE),0))*0.85,IF(L325>=1,IF(G329=\"\",F325,F325*IFERROR(VLOOKUP('Коэффициенты повторяемости'!$K$40,'Коэффициенты повторяемости'!$O$3:$P$102,2,FALSE),0)))))","v":{"v":0,"d":"0.0"}},{"$f":"IF(L325=\"\",\"Укажите ширину прохода между оборудованием\",\"\")","v":"Укажите ширину прохода между оборудованием"}]
[]
[null,null,"Уборка помещений на производствах, дающих металлические отходы в виде стружки, обрезков и т. п. (4-я группа)",{"$nulls":17},"Подметание пола без предварительного увлажнения со сбором отходов от рабочих мест и их затариванием","До 22","Подметание пола без предварительного увлажнения со сбором отходов от рабочих мест и их затариванием","норма времени обслуживания","До 22",{"$f":"CONCATENATE(W335,X335,Y335)","v":"Подметание пола без предварительного увлажнения со сбором отходов от рабочих мест и их затариваниемнорма времени обслуживанияДо 22"},0.33,{"$f":"CONCATENATE(G337,T338,K339)","v":"норма времени обслуживания"}]
[{"$nulls":20},"Подметание пола с предварительным увлажнением со сбором отходов от рабочих мест и их затариванием","23-33","Подметание пола без предварительного увлажнения со сбором отходов от рабочих мест и их затариванием","норма обслуживания","23-33",{"$f":"CONCATENATE(W336,X336,Y336)","v":"Подметание пола без предварительного увлажнения со сбором отходов от рабочих мест и их затариваниемнорма обслуживания23-33"},0.35,{"$f":"CONCATENATE(G337,T339,K339)","v":"норма обслуживания"}]
[null,null,"Виды работ и способы уборки\n",{"$nulls":17},"Подметание пола с применением опилок со сбором отходов от рабочих мест и их затариванием","34-50","Подметание пола без предварительного увлажнения со сбором отходов от рабочих мест и их затариванием","норма времени обслуживания","34-50","Подметание пола без предварительного увлажнения со сбором отходов от рабочих мест и их затариваниемнорма времени обслуживания34-50",0.37,{"$f":"CONCATENATE(G357,T357,K359)","v":"норма времени обслуживания"}]
[{"$nulls":19},"норма времени обслуживания",null,"51-75","Подметание пола без предварительного увлажнения со сбором отходов от рабочих мест и их затариванием","норма обслуживания","51-75","Подметание пола без предварительного увлажнения со сбором отходов от рабочих мест и их затариваниемнорма обслуживания51-75",0.41,{"$f":"CONCATENATE(G357,T358,K359)","v":"норма обслуживания"}]
[null,null,"Масса отходов и мусора со 100 м2 убираемой площади в смену, кг",{"$nulls":16},"норма обслуживания",null,"76-113","Подметание пола без предварительного увлажнения со сбором отходов от рабочих мест и их затариванием","норма времени обслуживания","76-113","Подметание пола без предварительного увлажнения со сбором отходов от рабочих мест и их затариваниемнорма времени обслуживания76-113",0.46,{"$f":"CONCATENATE(G377,T373,K379)","v":"норма времени обслуживания"}]
[{"$nulls":21},"114-170","Подметание пола без предварительного увлажнения со сбором отходов от рабочих мест и их затариванием","норма обслуживания","114-170","Подметание пола без предварительного увлажнения со сбором отходов от рабочих мест и их затариваниемнорма обслуживания114-170",0.55,{"$f":"CONCATENATE(G377,T374,K379)","v":"норма обслуживания"}]
[null,null,"Норма времени обслуживания 100 м2, чел.-ч",{"$nulls":4},{"$f":"IFERROR(VLOOKUP($AB$335,$Z$335:$AA$376,2,FALSE),0)","v":{"v":0,"d":"0.00"}},{"$nulls":13},"171-256","Подметание пола без предварительного увлажнения со сбором отходов от рабочих мест и их затариванием","норма времени обслуживания","171-256","Подметание пола без предварительного увлажнения со сбором отходов от рабочих мест и их затариваниемнорма времени обслуживания171-256",0.67]
[{"$nulls":22},"Подметание пола без предварительного увлажнения со сбором отходов от рабочих мест и их затариванием","норма обслуживания","До 22","Подметание пола без предварительного увлажнения со сбором отходов от рабочих мест и их затариваниемнорма обслуживанияДо 22",2425]
[null,null,"Норма обслуживания, м2",null,null,{"$f":"IFERROR(VLOOKUP($AB$336,$Z$335:$AA$376,2,FALSE),0)","v":{"v":0,"d":"0.0"}},"Ширина проходов между оборудованием, м",{"$nulls":15},"Подметание пола без предварительного увлажнения со сбором отходов от рабочих мест и их затариванием","норма времени обслуживания","23-33","Подметание пола без предварительного увлажнения со сбором отходов от рабочих мест и их затариваниемнорма времени обслуживания23-33",2285]
[{"$nulls":22},"Подметание пола без предварительного увлажнения со сбором отходов от рабочих мест и их затариванием","норма обслуживания","34-50","Подметание пола без предварительного увлажнения со сбором отходов от рабочих мест и их затариваниемнорма обслуживания34-50",2160]
[null,null,"Площадь помещения, м2",{"$nulls":19},"Подметание пола без предварительного увлажнения со сбором отходов от рабочих мест и их затариванием","норма времени обслуживания","51-75","Подметание пола без предварительного увлажнения со сбором отходов от рабочих мест и их затариваниемнорма времени обслуживания51-75",1950]
[{"$nulls":22},"Подметание пола без предварительного увлажнения со сбором отходов от рабочих мест и их затариванием","норма обслуживания","76-113","Подметание пола без предварительного увлажнения со сбором отходов от рабочих мест и их затариваниемнорма обслуживания76-113",1740]
[null,null,"Повторяемость уборки за смену",{"$nulls":19},"Подметание пола без предварительного увлажнения со сбором отходов от рабочих мест и их затариванием","норма времени обслуживания","114-170","Подметание пола без предварительного увлажнения со сбором отходов от рабочих мест и их затариваниемнорма времени обслуживания114-170",1455]
[{"$nulls":22},"Подметание пола без предварительного увлажнения со сбором отходов от рабочих мест и их затариванием","норма обслуживания","171-256","Подметание пола без предварительного увлажнения со сбором отходов от рабочих мест и их затариваниемнорма обслуживания171-256",1195]
[null,null,"Сбор отходов (стружки) цветных металлов ",{"$nulls":18},"Да","Подметание пола с предварительным увлажнением со сбором отходов от рабочих мест и их затариванием","норма времени обслуживания","До 22","Подметание пола с предварительным увлажнением со сбором отходов от рабочих мест и их затариваниемнорма времени обслуживанияДо 22",0.34]
[{"$nulls":22},"Подметание пола с предварительным увлажнением со сбором отходов от рабочих мест и их затариванием","норма обслуживания","23-33","Подметание пола с предварительным увлажнением со сбором отходов от рабочих мест и их затариваниемнорма обслуживания23-33",0.36]
[null,null,"Доставка отходов до цехового места складирования и разгрузке их самим уборщиком производственных помещений",{"$nulls":19},"Подметание пола с предварительным увлажнением со сбором отходов от рабочих мест и их затариванием","норма времени обслуживания","34-50","Подметание пола с предварительным увлажнением со сбором отходов от рабочих мест и их затариваниемнорма времени обслуживания34-50",0.38]
[{"$nulls":22},"Подметание пола с предварительным увлажнением со сбором отходов от рабочих мест и их затариванием","норма обслуживания","51-75","Подметание пола с предварительным увлажнением со сбором отходов от рабочих мест и их затариваниемнорма обслуживания51-75",0.42]
[null,null,"Нормативная трудоемкость обслуживания, чел.-ч",{"$nulls":5},{"$f":"IF(G347=\"\",F345/100*H341*IF(H349=\"да\",1.11,1)*IF(L351=\"да\",1.25,1),F345/100*H341*IFERROR(VLOOKUP('Коэффициенты повторяемости'!$K$41,'Коэффициенты повторяемости'!$O$3:$P$102,2,FALSE),0)*IF(H349=\"да\",1.11,1)*IF(L351=\"да\",1.25,1))","v":{"v":0,"d":"0.00"}},{"$nulls":13},"Подметание пола с предварительным увлажнением со сбором отходов от рабочих мест и их затариванием","норма времени обслуживания","76-113","Подметание пола с предварительным увлажнением со сбором отходов от рабочих мест и их затариваниемнорма времени обслуживания76-113",0.48]
[{"$nulls":22},"Подметание пола с предварительным увлажнением со сбором отходов от рабочих мест и их затариванием","норма обслуживания","114-170","Подметание пола с предварительным увлажнением со сбором отходов от рабочих мест и их затариваниемнорма обслуживания114-170",0.57]
[null,null,"Нормативная обслуживаемая площадь, м2",{"$nulls":4},{"$f":"IF(L343=\"\",0,IF(L343<1,IF(G347=\"\",F343,F343*IFERROR(VLOOKUP('Коэффициенты повторяемости'!$K$42,'Коэффициенты повторяемости'!$O$3:$P$102,2,FALSE),0))*0.85*IF(H349=\"да\",0.9,1)*IF(L351=\"да\",0.8,1),IF(L343>=1,IF(G347=\"\",F343,F343*IFERROR(VLOOKUP('Коэффициенты повторяемости'!$K$42,'Коэффициенты повторяемости'!$O$3:$P$102,2,FALSE),0))*IF(H349=\"да\",0.9,1)*IF(L351=\"да\",0.8,1))))","v":{"v":0,"d":"0.0"}},{"$f":"IF(L343=\"\",\"Укажите ширину прохода между оборудованием\",\"\")","v":"Укажите ширину прохода между оборудованием"},{"$nulls":13},"Подметание пола с предварительным увлажнением со сбором отходов от рабочих мест и их затариванием","норма времени обслуживания","171-256","Подметание пола с предварительным увлажнением со сбором отходов от рабочих мест и их затариваниемнорма времени обслуживания171-256",0.7]
[{"$nulls":22},"Подметание пола с предварительным увлажнением со сбором отходов от рабочих мест и их затариванием","норма обслуживания","До 22","Подметание пола с предварительным увлажнением со сбором отходов от рабочих мест и их затариваниемнорма обслуживанияДо 22",2350]
[null,null,"Виды работ и способы уборки\n",{"$nulls":16},"норма времени обслуживания",null,null,"Подметание пола с предварительным увлажнением со сбором отходов от рабочих мест и их затариванием","норма времени обслуживания","23-33","Подметание пола с предварительным увлажнением со сбором отходов от рабочих мест и их затариваниемнорма времени обслуживания23-33",2220]
[{"$nulls":19},"норма обслуживания",null,null,"Подметание пола с предварительным увлажнением со сбором отходов от рабочих мест и их затариванием","норма обслуживания","34-50","Подметание пола с предварительным увлажнением со сбором отходов от рабочих мест и их затариваниемнорма обслуживания34-50",2105]
[null,null,"Масса отходов и мусора со 100 м2 убираемой площади в смену, кг",{"$nulls":19},"Подметание пола с предварительным увлажнением со сбором отходов от рабочих мест и их затариванием","норма времени обслуживания","51-75","Подметание пола с предварительным увлажнением со сбором отходов от рабочих мест и их затариваниемнорма времени обслуживания51-75",1905]
[{"$nulls":22},"Подметание пола с предварительным увлажнением со сбором отходов от рабочих мест и их затариванием","норма обслуживания","76-113","Подметание пола с предварительным увлажнением со сбором отходов от рабочих мест и их затариваниемнорма обслуживания76-113",1665]
[null,null,"Норма времени обслуживания 100 м2, чел.-ч",{"$nulls":4},{"$f":"IFERROR(VLOOKUP($AB$337,$Z$335:$AA$376,2,FALSE),0)","v":{"v":0,"d":"0.00"}},{"$nulls":14},"Подметание пола с предварительным увлажнением со сбором отходов от рабочих мест и их затариванием","норма времени обслуживания","114-170","Подметание пола с предварительным увлажнением со сбором отходов от рабочих мест и их затариваниемнорма времени обслуживания114-170",1405]
[{"$nulls":22},"Подметание пола с предварительным увлажнением со сбором отходов от рабочих мест и их затариванием","норма обслуживания","171-256","Подметание пола с предварительным увлажнением со сбором отходов от рабочих мест и их затариваниемнорма обслуживания171-256",1145]
[null,null,"Норма обслуживания, м2",null,null,{"$f":"IFERROR(VLOOKUP($AB$338,$Z$335:$AA$376,2,FALSE),0)","v":{"v":0,"d":"0.0"}},"Ширина проходов между оборудованием, м",{"$nulls":15},"Подметание пола с применением опилок со сбором отходов от рабочих мест и их затариванием","норма времени обслуживания","До 22","Подметание пола с применением опилок со сбором отходов от рабочих мест и их затариваниемнорма времени обслуживанияДо 22",0.36]
[{"$nulls":22},"Подметание пола с применением опилок со сбором отходов от рабочих мест и их затариванием","норма обслуживания","23-33","Подметание пола с применением опилок со сбором отходов от рабочих мест и их затариваниемнорма обслуживания23-33",0.43]
[null,null,"Площадь помещения, м2",{"$nulls":19},"Подметание пола с применением опилок со сбором отходов от рабочих мест и их затариванием","норма времени обслуживания","34-50","Подметание пола с применением опилок со сбором отходов от рабочих мест и их затариваниемнорма времени обслуживания34-50",0.47]
[{"$nulls":22},"Подметание пола с применением опилок со сбором отходов от рабочих мест и их затариванием","норма обслуживания","51-75","Подметание пола с применением опилок со сбором отходов от рабочих мест и их затариваниемнорма обслуживания51-75",0.55]
[null,null,"Повторяемость уборки за смену",{"$nulls":19},"Подметание пола с применением опилок со сбором отходов от рабочих мест и их затариванием","норма времени обслуживания","76-113","Подметание пола с применением опилок со сбором отходов от рабочих мест и их затариваниемнорма времени обслуживания76-113",0.66]
[{"$nulls":22},"Подметание пола с применением опилок со сбором отходов от рабочих мест и их затариванием","норма обслуживания","114-170","Подметание пола с применением опилок со сбором отходов от рабочих мест и их затариваниемнорма обслуживания114-170",0.73]
[null,null,"Сбор отходов (стружки) цветных металлов ",{"$nulls":19},"Подметание пола с применением опилок со сбором отходов от рабочих мест и их затариванием","норма времени обслуживания","171-256","Подметание пола с применением опилок со сбором отходов от рабочих мест и их затариваниемнорма времени обслуживания171-256",0.9]
[{"$nulls":22},"Подметание пола с применением опилок со сбором отходов от рабочих мест и их затариванием","норма обслуживания","До 22","Подметание пола с применением опилок со сбором отходов от рабочих мест и их затариваниемнорма обслуживанияДо 22",2220]
[null,null,"Доставка отходов до цехового места складирования и разгрузке их самим уборщиком производственных помещений",{"$nulls":19},"Подметание пола с применением опилок со сбором отходов от рабочих мест и их затариванием","норма времени обслуживания","23-33","Подметание пола с применением опилок со сбором отходов от рабочих мест и их затариваниемнорма времени обслуживания23-33",1860]
[{"$nulls":22},"Подметание пола с применением опилок со сбором отходов от рабочих мест и их затариванием","норма обслуживания","34-50","Подметание пола с применением опилок со сбором отходов от рабочих мест и их затариваниемнорма обслуживания34-50",1700]
[null,null,"Нормативная трудоемкость обслуживания, чел.-ч",{"$nulls":5},{"$f":"IF(G367=\"\",F365/100*H361*IF(H369=\"да\",1.11,1)*IF(L371=\"да\",1.25,1),F365/100*H361*IFERROR(VLOOKUP('Коэффициенты повторяемости'!$K$43,'Коэффициенты повторяемости'!$O$3:$P$102,2,FALSE),0)*IF(H369=\"да\",1.11,1)*IF(L371=\"да\",1.25,1))","v":{"v":0,"d":"0.00"}},{"$nulls":10},"норма времени обслуживания",null,null,"Подметание пола с применением опилок со сбором отходов от рабочих мест и их затариванием","норма времени обслуживания","51-75","Подметание пола с применением опилок со сбором отходов от рабочих мест и их затариваниемнорма времени обслуживания51-75",1455]
[{"$nulls":19},"норма обслуживания",null,null,"Подметание пола с применением опилок со сбором отходов от рабочих мест и их затариванием","норма обслуживания","76-113","Подметание пола с применением опилок со сбором отходов от рабочих мест и их затариваниемнорма обслуживания76-113",1210]
[null,null,"Нормативная обслуживаемая площадь, м2",{"$nulls":4},{"$f":"IF(L363=\"\",0,IF(L363<1,IF(G367=\"\",F363,F363*IFERROR(VLOOKUP('Коэффициенты повторяемости'!$K$44,'Коэффициенты повторяемости'!$O$3:$P$102,2,FALSE),0))*0.85*IF(H369=\"да\",0.9,1)*IF(L371=\"да\",0.8,1),IF(L363>=1,IF(G367=\"\",F363,F363*IFERROR(VLOOKUP('Коэффициенты повторяемости'!$K$44,'Коэффициенты повторяемости'!$O$3:$P$102,2,FALSE),0))*IF(H369=\"да\",0.9,1)*IF(L371=\"да\",0.8,1))))","v":{"v":0,"d":"0.0"}},{"$f":"IF(L363=\"\",\"Укажите ширину прохода между оборудованием\",\"\")","v":"Укажите ширину прохода между оборудованием"},{"$nulls":13},"Подметание пола с применением опилок со сбором отходов от рабочих мест и их затариванием","норма времени обслуживания","114-170","Подметание пола с применением опилок со сбором отходов от рабочих мест и их затариваниемнорма времени обслуживания114-170",1095]
[{"$nulls":22},"Подметание пола с применением опилок со сбором отходов от рабочих мест и их затариванием","норма обслуживания","171-256","Подметание пола с применением опилок со сбором отходов от рабочих мест и их затариваниемнорма обслуживания171-256",890]
[null,null,"Виды работ и способы уборки\n"]
[]
[null,null,"Масса отходов и мусора со 100 м2 убираемой площади в смену, кг"]
[]
[null,null,"Норма времени обслуживания 100 м2, чел.-ч",{"$nulls":4},{"$f":"IFERROR(VLOOKUP($AB$339,$Z$335:$AA$376,2,FALSE),0)","v":{"v":0,"d":"0.00"}}]
[]
[null,null,"Норма обслуживания, м2",null,null,{"$f":"IFERROR(VLOOKUP($AB$340,$Z$335:$AA$376,2,FALSE),0)","v":{"v":0,"d":"0.0"}},"Ширина проходов между оборудованием, м"]
[]
[null,null,"Площадь помещения, м2"]
[]
[null,null,"Повторяемость уборки за смену"]
[]
[null,null,"Сбор отходов (стружки) цветных металлов "]
[]
[null,null,"Доставка отходов до цехового места складирования и разгрузке их самим уборщиком производственных помещений"]
[]
[null,null,"Нормативная трудоемкость обслуживания, чел.-ч",{"$nulls":5},{"$f":"IF(G387=\"\",F385/100*H381*IF(H389=\"да\",1.11,1)*IF(L391=\"да\",1.25,1),F385/100*H381*IFERROR(VLOOKUP('Коэффициенты повторяемости'!$K$45,'Коэффициенты повторяемости'!$O$3:$P$102,2,FALSE),0)*IF(H389=\"да\",1.11,1)*IF(L391=\"да\",1.25,1))","v":{"v":0,"d":"0.00"}}]
[]
[null,null,"Нормативная обслуживаемая площадь, м2",{"$nulls":4},{"$f":"IF(L383=\"\",0,IF(L383<1,IF(G387=\"\",F383,F383*IFERROR(VLOOKUP('Коэффициенты повторяемости'!$K$46,'Коэффициенты повторяемости'!$O$3:$P$102,2,FALSE),0))*0.85*IF(H389=\"да\",0.9,1)*IF(L391=\"да\",0.8,1),IF(L383>=1,IF(G387=\"\",F383,F383*IFERROR(VLOOKUP('Коэффициенты повторяемости'!$K$46,'Коэффициенты повторяемости'!$O$3:$P$102,2,FALSE),0))*IF(H389=\"да\",0.9,1)*IF(L391=\"да\",0.8,1))))","v":{"v":0,"d":"0.0"}},{"$f":"IF(L383=\"\",\"Укажите ширину прохода между оборудованием\",\"\")","v":"Укажите ширину прохода между оборудованием"}]
[]
[null,null,"Уборка помещений на производствах, дающих отходы литья, огнеупорный мусор, угольную и торфяную пыль и не требующих тщательной их уборки (5-я группа)",{"$nulls":17},"Подметание пола без предварительного увлажнения","До 50","Подметание пола без предварительного увлажнения","норма времени обслуживания","До 50",{"$f":"CONCATENATE(W397,X397,Y397)","v":"Подметание пола без предварительного увлажнениянорма времени обслуживанияДо 50"},0.26,{"$f":"CONCATENATE(G399,T403,K401)","v":"норма времени обслуживания"}]
[{"$nulls":20},"Подметание пола с предварительным увлажнением","51-75","Подметание пола без предварительного увлажнения","норма времени обслуживания","51-75","Подметание пола без предварительного увлажнениянорма времени обслуживания51-75",0.32,{"$f":"CONCATENATE(G399,T404,K401)","v":"норма обслуживания"}]
[null,null,"Виды работ и способы уборки\n",{"$nulls":18},"76-113","Подметание пола без предварительного увлажнения","норма времени обслуживания","76-113","Подметание пола без предварительного увлажнениянорма времени обслуживания76-113",0.4,{"$f":"CONCATENATE(G417,T421,K419)","v":"норма времени обслуживания"}]
[{"$nulls":21},"114-170","Подметание пола без предварительного увлажнения","норма времени обслуживания","114-170","Подметание пола без предварительного увлажнениянорма времени обслуживания114-170",0.52,{"$f":"CONCATENATE(G417,T422,K419)","v":"норма обслуживания"}]
[null,null,"Масса отходов и мусора со 100 м2 убираемой площади в смену, кг",{"$nulls":19},"Подметание пола без предварительного увлажнения","норма обслуживания","До 50","Подметание пола без предварительного увлажнениянорма обслуживанияДо 50",3075]
[{"$nulls":22},"Подметание пола без предварительного увлажнения","норма обслуживания","51-75","Подметание пола без предварительного увлажнениянорма обслуживания51-75",2500]
[null,null,"Норма времени обслуживания 100 м2, чел.-ч",{"$nulls":4},{"$f":"IFERROR(VLOOKUP($AB$397,$Z$397:$AA$412,2,FALSE),0)","v":{"v":0,"d":"0.00"}},{"$nulls":11},"норма времени обслуживания",null,null,"Подметание пола без предварительного увлажнения","норма обслуживания","76-113","Подметание пола без предварительного увлажнениянорма обслуживания76-113",2000]
[{"$nulls":19},"норма обслуживания",null,null,"Подметание пола без предварительного увлажнения","норма обслуживания","114-170","Подметание пола без предварительного увлажнениянорма обслуживания114-170",1540]
[null,null,"Норма обслуживания, м2",null,null,{"$f":"IFERROR(VLOOKUP(AB398,Z397:AA412,2,FALSE),0)","v":{"v":0,"d":"0.0"}},"Ширина проходов между оборудованием, м",{"$nulls":15},"Подметание пола с предварительным увлажнением","норма времени обслуживания","До 50",{"$f":"CONCATENATE(W405,X405,Y405)","v":"Подметание пола с предварительным увлажнениемнорма времени обслуживанияДо 50"},0.32]
[{"$nulls":22},"Подметание пола с предварительным увлажнением","норма времени обслуживания","51-75",{"$f":"CONCATENATE(W406,X406,Y406)","v":"Подметание пола с предварительным увлажнениемнорма времени обслуживания51-75"},0.42]
[null,null,"Площадь помещения, м2",{"$nulls":19},"Подметание пола с предварительным увлажнением","норма времени обслуживания","76-113",{"$f":"CONCATENATE(W407,X407,Y407)","v":"Подметание пола с предварительным увлажнениемнорма времени обслуживания76-113"},0.51]
[{"$nulls":22},"Подметание пола с предварительным увлажнением","норма времени обслуживания","114-170",{"$f":"CONCATENATE(W408,X408,Y408)","v":"Подметание пола с предварительным увлажнениемнорма времени обслуживания114-170"},0.66]
[null,null,"Повторяемость уборки за смену",{"$nulls":19},"Подметание пола с предварительным увлажнением","норма обслуживания","До 50",{"$f":"CONCATENATE(W409,X409,Y409)","v":"Подметание пола с предварительным увлажнениемнорма обслуживанияДо 50"},2500]
[{"$nulls":22},"Подметание пола с предварительным увлажнением","норма обслуживания","51-75","Подметание пола с предварительным увлажнениемнорма обслуживания51-75",1905]
[null,null,"Доставка отходов до цехового места складирования и разгрузке их самим уборщиком производственных помещений",{"$nulls":19},"Подметание пола с предварительным увлажнением","норма обслуживания","76-113","Подметание пола с предварительным увлажнениемнорма обслуживания76-113",1570]
[{"$nulls":22},"Подметание пола с предварительным увлажнением","норма обслуживания","114-170","Подметание пола с предварительным увлажнениемнорма обслуживания114-170",1210]
[null,null,"Нормативная трудоемкость обслуживания, чел.-ч",{"$nulls":5},{"$f":"IF(G409=\"\",F407/100*H403*IF(L411=\"да\",1.25,1),F407/100*H403*IFERROR(VLOOKUP('Коэффициенты повторяемости'!$K$47,'Коэффициенты повторяемости'!$O$3:$P$102,2,FALSE),0)*IF(L411=\"да\",1.25,1))","v":{"v":0,"d":"0.00"}}]
[]
[null,null,"Нормативная обслуживаемая площадь, м2",{"$nulls":4},{"$f":"IF(L405=\"\",0,IF(L405<1,IF(G409=\"\",F405,F405*IFERROR(VLOOKUP('Коэффициенты повторяемости'!$K$48,'Коэффициенты повторяемости'!$O$3:$P$102,2,FALSE),0))*0.85*IF(L411=\"да\",0.8,1),IF(L405>=1,IF(G409=\"\",F405,F405*IFERROR(VLOOKUP('Коэффициенты повторяемости'!$K$48,'Коэффициенты повторяемости'!$O$3:$P$102,2,FALSE),0))*IF(L411=\"да\",0.8,1))))","v":{"v":0,"d":"0.0"}},{"$f":"IF(L405=\"\",\"Укажите ширину прохода между оборудованием\",\"\")","v":"Укажите ширину прохода между оборудованием"}]
[]
[null,null,"Виды работ и способы уборки\n"]
[]
[null,null,"Масса отходов и мусора со 100 м2 убираемой площади в смену, кг"]
[]
[null,null,"Норма времени обслуживания 100 м2, чел.-ч",{"$nulls":4},{"$f":"IFERROR(VLOOKUP($AB$397,$Z$397:$AA$412,2,FALSE),0)","v":{"v":0,"d":"0.00"}},{"$nulls":11},"норма времени обслуживания"]
[{"$nulls":19},"норма обслуживания"]
[null,null,"Норма обслуживания, м2",null,null,{"$f":"IFERROR(VLOOKUP(AB400,Z397:AA412,2,FALSE),0)","v":{"v":0,"d":"0.0"}},"Ширина проходов между оборудованием, м"]
[]
[null,null,"Площадь помещения, м2"]
[]
[null,null,"Повторяемость уборки за смену"]
[]
[null,null,"Доставка отходов до цехового места складирования и разгрузке их самим уборщиком производственных помещений"]
[]
[null,null,"Нормативная трудоемкость обслуживания, чел.-ч",{"$nulls":5},{"$f":"IF(G427=\"\",F425/100*H421*IF(L429=\"да\",1.25,1),F425/100*H421*IFERROR(VLOOKUP('Коэффициенты повторяемости'!$K$49,'Коэффициенты повторяемости'!$O$3:$P$102,2,FALSE),0)*IF(L429=\"да\",1.25,1))","v":{"v":0,"d":"0.00"}}]
[]
[null,null,"Нормативная обслуживаемая площадь, м2",{"$nulls":4},{"$f":"IF(L423=\"\",0,IF(L423<1,IF(G427=\"\",F423,F423*IFERROR(VLOOKUP('Коэффициенты повторяемости'!$K$50,'Коэффициенты повторяемости'!$O$3:$P$102,2,FALSE),0))*0.85*IF(L429=\"да\",0.8,1),IF(L423>=1,IF(G427=\"\",F423,F423*IFERROR(VLOOKUP('Коэффициенты повторяемости'!$K$50,'Коэффициенты повторяемости'!$O$3:$P$102,2,FALSE),0))*IF(L429=\"да\",0.8,1))))","v":{"v":0,"d":"0.0"}},{"$f":"IF(L423=\"\",\"Укажите ширину прохода между оборудованием\",\"\")","v":"Укажите ширину прохода между оборудованием"}]
[]
[null,null,"Уборка стен, панелей, колонн"]
[{"$nulls":20},"Мытье стен, панелей, колонн, облицованных кафельной плиткой",1,"Мытье стен, панелей, колонн, облицованных кафельной плиткой","норма времени обслуживания",1,{"$f":"CONCATENATE(W436,X436,Y436)","v":"Мытье стен, панелей, колонн, облицованных кафельной плиткойнорма времени обслуживания1"},3.8,{"$f":"CONCATENATE(G439,T439,G437)","v":"норма времени обслуживания"}]
[null,null,"Группа производственного помещения",{"$nulls":17},"Обметание стен, панелей, колонн",null,"Мытье стен, панелей, колонн, облицованных кафельной плиткой","норма времени обслуживания",2,{"$f":"CONCATENATE(W437,X437,Y437)","v":"Мытье стен, панелей, колонн, облицованных кафельной плиткойнорма времени обслуживания2"},4.56,{"$f":"CONCATENATE(G439,T440,G437)","v":"норма обслуживания"}]
[{"$nulls":21},2,"Мытье стен, панелей, колонн, облицованных кафельной плиткой","норма времени обслуживания",3,"Мытье стен, панелей, колонн, облицованных кафельной плиткойнорма времени обслуживания3",3.8,{"$f":"CONCATENATE(G455,T455,G453)","v":"норма времени обслуживания"}]
[null,null,"Виды работ и способы уборки\n",{"$nulls":16},"норма времени обслуживания",null,null,"Мытье стен, панелей, колонн, облицованных кафельной плиткой","норма времени обслуживания",4,"Мытье стен, панелей, колонн, облицованных кафельной плиткойнорма времени обслуживания4",4.56,{"$f":"CONCATENATE(G455,T456,G453)","v":"норма обслуживания"}]
[{"$nulls":19},"норма обслуживания",null,3,"Мытье стен, панелей, колонн, облицованных кафельной плиткой","норма времени обслуживания",5,"Мытье стен, панелей, колонн, облицованных кафельной плиткойнорма времени обслуживания5",4.56,{"$f":"CONCATENATE(G471,T471,G469)","v":"норма времени обслуживания"}]
[null,null,"Норма времени обслуживания 100 м2, чел.-ч",{"$nulls":4},{"$f":"IFERROR(VLOOKUP(AB436,$Z$436:$AA$455,2,FALSE),0)","v":{"v":0,"d":"0.00"}},{"$nulls":14},"Мытье стен, панелей, колонн, облицованных кафельной плиткой","норма обслуживания",1,"Мытье стен, панелей, колонн, облицованных кафельной плиткойнорма обслуживания1",210,{"$f":"CONCATENATE(G471,T472,G469)","v":"норма обслуживания"}]
[{"$nulls":21},4,"Мытье стен, панелей, колонн, облицованных кафельной плиткой","норма обслуживания",2,"Мытье стен, панелей, колонн, облицованных кафельной плиткойнорма обслуживания2",175,{"$f":"CONCATENATE(G487,T487,G485)","v":"норма времени обслуживания"}]
[null,null,"Норма обслуживания, м2",null,null,{"$f":"IFERROR(VLOOKUP(AB437,$Z$436:$AA$455,2,FALSE),0)","v":{"v":0,"d":"0.0"}},{"$nulls":16},"Мытье стен, панелей, колонн, облицованных кафельной плиткой","норма обслуживания",3,"Мытье стен, панелей, колонн, облицованных кафельной плиткойнорма обслуживания3",210,{"$f":"CONCATENATE(G487,T488,G485)","v":"норма обслуживания"}]
[{"$nulls":21},5,"Мытье стен, панелей, колонн, облицованных кафельной плиткой","норма обслуживания",4,"Мытье стен, панелей, колонн, облицованных кафельной плиткойнорма обслуживания4",175,{"$f":"CONCATENATE(G503,T503,G501)","v":"норма времени обслуживания"}]
[null,null,"Площадь, м2",{"$nulls":19},"Мытье стен, панелей, колонн, облицованных кафельной плиткой","норма обслуживания",5,"Мытье стен, панелей, колонн, облицованных кафельной плиткойнорма обслуживания5",175,{"$f":"CONCATENATE(G503,T504,G501)","v":"норма обслуживания"}]
[{"$nulls":22},"Обметание стен, панелей, колонн","норма времени обслуживания",1,"Обметание стен, панелей, колонннорма времени обслуживания1",0.5]
[null,null,"Повторяемость уборки за смену",{"$nulls":19},"Обметание стен, панелей, колонн","норма времени обслуживания",2,"Обметание стен, панелей, колонннорма времени обслуживания2",0.6]
[{"$nulls":22},"Обметание стен, панелей, колонн","норма времени обслуживания",3,"Обметание стен, панелей, колонннорма времени обслуживания3",0.5]
[null,null,"Нормативная трудоемкость обслуживания, чел.-ч",{"$nulls":5},{"$f":"IF(G447=\"\",E445/100*H441,E445/100*H441*IFERROR(VLOOKUP('Коэффициенты повторяемости'!$K$51,'Коэффициенты повторяемости'!$O$3:$P$102,2,FALSE),0))","v":{"v":0,"d":"0.00"}},{"$nulls":13},"Обметание стен, панелей, колонн","норма времени обслуживания",4,"Обметание стен, панелей, колонннорма времени обслуживания4",0.6]
[{"$nulls":22},"Обметание стен, панелей, колонн","норма времени обслуживания",5,"Обметание стен, панелей, колонннорма времени обслуживания5",0.6]
[null,null,"Нормативная обслуживаемая площадь, м2",{"$nulls":4},{"$f":"IF(G447=\"\",F443,F443*IFERROR(VLOOKUP('Коэффициенты повторяемости'!$K$52,'Коэффициенты повторяемости'!$O$3:$P$102,2,FALSE),0))","v":{"v":0,"d":"0.0"}},{"$nulls":14},"Обметание стен, панелей, колонн","норма обслуживания",1,"Обметание стен, панелей, колонннорма обслуживания1",1600]
[{"$nulls":22},"Обметание стен, панелей, колонн","норма обслуживания",2,"Обметание стен, панелей, колонннорма обслуживания2",1330]
[null,null,"Группа производственного помещения",{"$nulls":19},"Обметание стен, панелей, колонн","норма обслуживания",3,"Обметание стен, панелей, колонннорма обслуживания3",1600]
[{"$nulls":22},"Обметание стен, панелей, колонн","норма обслуживания",4,"Обметание стен, панелей, колонннорма обслуживания4",1330]
[null,null,"Виды работ и способы уборки\n",{"$nulls":16},"норма времени обслуживания",null,null,"Обметание стен, панелей, колонн","норма обслуживания",5,"Обметание стен, панелей, колонннорма обслуживания5",1330]
[{"$nulls":19},"норма обслуживания"]
[null,null,"Норма времени обслуживания 100 м2, чел.-ч",{"$nulls":4},{"$f":"IFERROR(VLOOKUP(AB438,$Z$436:$AA$455,2,FALSE),0)","v":{"v":0,"d":"0.00"}}]
[]
[null,null,"Норма обслуживания, м2",null,null,{"$f":"IFERROR(VLOOKUP(AB439,$Z$436:$AA$455,2,FALSE),0)","v":{"v":0,"d":"0.0"}}]
[]
[null,null,"Площадь, м2"]
[]
[null,null,"Повторяемость уборки за смену"]
[]
[null,null,"Нормативная трудоемкость обслуживания, чел.-ч",{"$nulls":5},{"$f":"IF(G463=\"\",E461/100*H457,E461/100*H457*IFERROR(VLOOKUP('Коэффициенты повторяемости'!$K$53,'Коэффициенты повторяемости'!$O$3:$P$102,2,FALSE),0))","v":{"v":0,"d":"0.00"}}]
[]
[null,null,"Нормативная обслуживаемая площадь, м2",{"$nulls":4},{"$f":"IF(G463=\"\",F459,F459*IFERROR(VLOOKUP('Коэффициенты повторяемости'!$K$54,'Коэффициенты повторяемости'!$O$3:$P$102,2,FALSE),0))","v":{"v":0,"d":"0.0"}}]
[]
[null,null,"Группа производственного помещения"]
[]
[null,null,"Виды работ и способы уборки\n",{"$nulls":16},"норма времени обслуживания"]
[{"$nulls":19},"норма обслуживания"]
[null,null,"Норма времени обслуживания 100 м2, чел.-ч",{"$nulls":4},{"$f":"IFERROR(VLOOKUP(AB440,$Z$436:$AA$455,2,FALSE),0)","v":{"v":0,"d":"0.00"}}]
[]
[null,null,"Норма обслуживания, м2",null,null,{"$f":"IFERROR(VLOOKUP(AB441,$Z$436:$AA$455,2,FALSE),0)","v":{"v":0,"d":"0.0"}}]
[]
[null,null,"Площадь, м2"]
[]
[null,null,"Повторяемость уборки за смену"]
[]
[null,null,"Нормативная трудоемкость обслуживания, чел.-ч",{"$nulls":5},{"$f":"IF(G479=\"\",E477/100*H473,E477/100*H473*IFERROR(VLOOKUP('Коэффициенты повторяемости'!$K$55,'Коэффициенты повторяемости'!$O$3:$P$102,2,FALSE),0))","v":{"v":0,"d":"0.00"}}]
[]
[null,null,"Нормативная обслуживаемая площадь, м2",{"$nulls":4},{"$f":"IF(G479=\"\",F475,F475*IFERROR(VLOOKUP('Коэффициенты повторяемости'!$K$56,'Коэффициенты повторяемости'!$O$3:$P$102,2,FALSE),0))","v":{"v":0,"d":"0.0"}}]
[]
[null,null,"Группа производственного помещения"]
[]
[null,null,"Виды работ и способы уборки\n",{"$nulls":16},"норма времени обслуживания"]
[{"$nulls":19},"норма обслуживания"]
[null,null,"Норма времени обслуживания 100 м2, чел.-ч",{"$nulls":4},{"$f":"IFERROR(VLOOKUP(AB442,$Z$436:$AA$455,2,FALSE),0)","v":{"v":0,"d":"0.00"}}]
[]
[null,null,"Норма обслуживания, м2",null,null,{"$f":"IFERROR(VLOOKUP(AB443,$Z$436:$AA$455,2,FALSE),0)","v":{"v":0,"d":"0.0"}}]
[]
[null,null,"Площадь, м2"]
[]
[null,null,"Повторяемость уборки за смену"]
[]
[null,null,"Нормативная трудоемкость обслуживания, чел.-ч",{"$nulls":5},{"$f":"IF(G495=\"\",E493/100*H489,E493/100*H489*IFERROR(VLOOKUP('Коэффициенты повторяемости'!$K$57,'Коэффициенты повторяемости'!$O$3:$P$102,2,FALSE),0))","v":{"v":0,"d":"0.00"}}]
[]
[null,null,"Нормативная обслуживаемая площадь, м2",{"$nulls":4},{"$f":"IF(G495=\"\",F491,F491*IFERROR(VLOOKUP('Коэффициенты повторяемости'!$K$58,'Коэффициенты повторяемости'!$O$3:$P$102,2,FALSE),0))","v":{"v":0,"d":"0.0"}}]
[]
[null,null,"Группа производственного помещения"]
[]
[null,null,"Виды работ и способы уборки\n",{"$nulls":16},"норма времени обслуживания"]
[{"$nulls":19},"норма обслуживания"]
[null,null,"Норма времени обслуживания 100 м2, чел.-ч",{"$nulls":4},{"$f":"IFERROR(VLOOKUP(AB444,$Z$436:$AA$455,2,FALSE),0)","v":{"v":0,"d":"0.00"}}]
[]
[null,null,"Норма обслуживания, м2",null,null,{"$f":"IFERROR(VLOOKUP(AB445,$Z$436:$AA$455,2,FALSE),0)","v":{"v":0,"d":"0.0"}}]
[]
[null,null,"Площадь, м2"]
[]
[null,null,"Повторяемость уборки за смену"]
[]
[null,null,"Нормативная трудоемкость обслуживания, чел.-ч",{"$nulls":5},{"$f":"IF(G511=\"\",E509/100*H505,E509/100*H505*IFERROR(VLOOKUP('Коэффициенты повторяемости'!$K$59,'Коэффициенты повторяемости'!$O$3:$P$102,2,FALSE),0))","v":{"v":0,"d":"0.00"}}]
[]
[null,null,"Нормативная обслуживаемая площадь, м2",{"$nulls":4},{"$f":"IF(G511=\"\",F507,F507*IFERROR(VLOOKUP('Коэффициенты повторяемости'!$K$60,'Коэффициенты повторяемости'!$O$3:$P$102,2,FALSE),0))","v":{"v":0,"d":"0.0"}}]

{"sheet":"Коэффициенты повторяемости","index":2,"n_rows":102,"n_cols":18,"rows_kept":102,"hidden":true,"merged":[[2,2,2,8],[4,2,7,2],[4,3,4,8],[5,3,5,4],[5,5,5,6],[5,7,5,8],[6,3,6,8]]}
[]
[]
[null,null,"Поправочные коэффициенты для пересчета норм при различной повторяемости ",{"$nulls":7},{"$f":"CONCATENATE(Калькулятор!$G$9,Калькулятор!$AD$25,Калькулятор!$G$23)","v":"норма времени обслуживания"},1,"норма обслуживания",1.2,{"$f":"CONCATENATE(L3,M3,N3)","v":"1норма обслуживания1,2"},0.83,null,1.2]
[{"$nulls":10},{"$f":"CONCATENATE(Калькулятор!$G$9,Калькулятор!$AD$27,Калькулятор!$G$23)","v":"норма обслуживания"},1,"норма времени обслуживания",1.2,{"$f":"CONCATENATE(L4,M4,N4)","v":"1норма времени обслуживания1,2"},{"v":1.2,"d":"1.20"},null,1.4]
[null,null,"Повторя-емость уборки за смену","Группа производственных помещений",{"$nulls":6},{"$f":"CONCATENATE(Калькулятор!$G$9,Калькулятор!$AD$39,Калькулятор!$G$37)","v":"норма времени обслуживания"},2,"норма обслуживания",1.2,"2норма обслуживания1,2",0.86,null,1.6]
[{"$nulls":3},"1-я",null,"2-я, 3-я",null,"4-я, 5-я",null,null,{"$f":"CONCATENATE(Калькулятор!$G$9,Калькулятор!$AD$41,Калькулятор!$G$37)","v":"норма обслуживания"},2,"норма времени обслуживания",1.2,"2норма времени обслуживания1,2",1.16,null,1.8]
[{"$nulls":3},"поправочные коэффициенты к:",{"$nulls":6},{"$f":"CONCATENATE(Калькулятор!$G$9,Калькулятор!$AD$59,Калькулятор!$G$51)","v":"норма времени обслуживания"},3,"норма обслуживания",1.2,"3норма обслуживания1,2",0.86,null,{"v":2,"d":"2.0"}]
[{"$nulls":3},"нормам обслужи-вания","нормам времени обслужи-вания","нормам обслужи-вания","нормам времени обслужи-вания","нормам обслужи-вания","нормам времени обслужи-вания",null,{"$f":"CONCATENATE(Калькулятор!$G$9,Калькулятор!$AD$61,Калькулятор!$G$51)","v":"норма обслуживания"},3,"норма времени обслуживания",1.2,"3норма времени обслуживания1,2",1.16,null,2.2]
[null,null,1.2,0.83,{"v":1.2,"d":"1.20"},0.86,1.16,0.97,1.03,null,{"$f":"CONCATENATE(Калькулятор!$G$9,Калькулятор!$AD$81,Калькулятор!$G$79)","v":"норма времени обслуживания"},4,"норма обслуживания",1.2,"4норма обслуживания1,2",0.97,null,2.4]
[null,null,1.4,0.71,1.41,0.83,{"v":1.2,"d":"1.20"},0.95,1.05,null,{"$f":"CONCATENATE(Калькулятор!$G$9,Калькулятор!$AD$83,Калькулятор!$G$79)","v":"норма обслуживания"},4,"норма времени обслуживания",1.2,"4норма времени обслуживания1,2",1.03,null,2.6]
[null,null,1.6,0.62,1.61,0.67,1.49,0.93,1.08,null,{"$f":"CONCATENATE(Калькулятор!$G$9,Калькулятор!$AD$97,Калькулятор!$G$101)","v":"норма времени обслуживания"},5,"норма обслуживания",1.2,"5норма обслуживания1,2",0.97,null,2.8]
[null,null,1.8,0.55,1.82,{"v":0.6,"d":"0.60"},1.67,{"v":0.9,"d":"0.90"},1.11,null,{"$f":"CONCATENATE(Калькулятор!$G$9,Калькулятор!$AD$99,Калькулятор!$G$101)","v":"норма обслуживания"},5,"норма времени обслуживания",1.2,"5норма времени обслуживания1,2",1.03,null,{"v":3,"d":"3.0"}]
[null,null,{"v":2,"d":"2.0"},{"v":0.5,"d":"0.50"},{"v":2,"d":"2.00"},0.55,1.82,0.88,1.14,null,{"$f":"CONCATENATE(Калькулятор!$G$9,Калькулятор!$AD$111,Калькулятор!$G$117)","v":"норма времени обслуживания"},1,"норма обслуживания",1.4,"1норма обслуживания1,4",0.71]
[null,null,2.2,0.45,2.22,{"v":0.5,"d":"0.50"},{"v":2,"d":"2.00"},0.87,1.15,null,{"$f":"CONCATENATE(Калькулятор!$G$9,Калькулятор!$AD$113,Калькулятор!$G$117)","v":"норма обслуживания"},1,"норма времени обслуживания",1.4,"1норма времени обслуживания1,4",1.41,null,{"$f":"CONCATENATE(Калькулятор!$G$9,Калькулятор!$AD$129,Калькулятор!$G$135)","v":""}]
[null,null,2.4,0.41,2.44,0.46,2.17,0.85,1.18,null,{"$f":"CONCATENATE(Калькулятор!$G$11,Калькулятор!$T$129,Калькулятор!$G$135)","v":"норма времени обслуживания"},2,"норма обслуживания",1.4,"2норма обслуживания1,4",0.83,null,{"$f":"CONCATENATE(Калькулятор!$G$9,Калькулятор!$AD$130,Калькулятор!$G$135)","v":""}]
[null,null,2.6,0.38,2.63,0.43,2.32,0.84,1.19,null,{"$f":"CONCATENATE(Калькулятор!$G$11,Калькулятор!$T$130,Калькулятор!$G$135)","v":"норма обслуживания"},2,"норма времени обслуживания",1.4,"2норма времени обслуживания1,4",{"v":1.2,"d":"1.20"}]
[null,null,2.8,0.35,2.86,{"v":0.4,"d":"0.40"},{"v":2.5,"d":"2.50"},0.81,1.23,null,{"$f":"CONCATENATE(Калькулятор!$G$11,Калькулятор!$T$145,Калькулятор!$G$151)","v":"норма времени обслуживания"},3,"норма обслуживания",1.4,"3норма обслуживания1,4",0.83]
[null,null,{"v":3,"d":"3.0"},0.33,3.03,0.38,2.63,{"v":0.8,"d":"0.80"},1.25,null,{"$f":"CONCATENATE(Калькулятор!$G$11,Калькулятор!$T$146,Калькулятор!$G$151)","v":"норма обслуживания"},3,"норма времени обслуживания",1.4,"3норма времени обслуживания1,4",{"v":1.2,"d":"1.20"}]
[{"$nulls":10},{"$f":"CONCATENATE(Калькулятор!$G$11,Калькулятор!$T$161,Калькулятор!$G$167)","v":"норма времени обслуживания"},4,"норма обслуживания",1.4,"4норма обслуживания1,4",0.95]
[{"$nulls":10},{"$f":"CONCATENATE(Калькулятор!$G$11,Калькулятор!$T$162,Калькулятор!$G$167)","v":"норма обслуживания"},4,"норма времени обслуживания",1.4,"4норма времени обслуживания1,4",1.05]
[{"$nulls":10},{"$f":"CONCATENATE(Калькулятор!$G$11,Калькулятор!$T$177,Калькулятор!$G$183)","v":"норма времени обслуживания"},5,"норма обслуживания",1.4,"5норма обслуживания1,4",0.95]
[{"$nulls":10},{"$f":"CONCATENATE(Калькулятор!$G$11,Калькулятор!$T$178,Калькулятор!$G$183)","v":"норма обслуживания"},5,"норма времени обслуживания",1.4,"5норма времени обслуживания1,4",1.05]
[{"$nulls":10},{"$f":"CONCATENATE(Калькулятор!$G$11,Калькулятор!$T$193,Калькулятор!$G$199)","v":"норма времени обслуживания"},1,"норма обслуживания",1.6,"1норма обслуживания1,6",0.62]
[{"$nulls":10},{"$f":"CONCATENATE(Калькулятор!$G$11,Калькулятор!$T$194,Калькулятор!$G$199)","v":"норма обслуживания"},1,"норма времени обслуживания",1.6,"1норма времени обслуживания1,6",1.61]
[{"$nulls":10},{"$f":"CONCATENATE(Калькулятор!$G$13,Калькулятор!$T$211,Калькулятор!$G$217)","v":"норма времени обслуживания"},2,"норма обслуживания",1.6,"2норма обслуживания1,6",0.67]
[{"$nulls":10},{"$f":"CONCATENATE(Калькулятор!$G$13,Калькулятор!$T$212,Калькулятор!$G$217)","v":"норма обслуживания"},2,"норма времени обслуживания",1.6,"2норма времени обслуживания1,6",1.49]
[{"$nulls":10},{"$f":"CONCATENATE(Калькулятор!$G$13,Калькулятор!$T$227,Калькулятор!$G$233)","v":"норма времени обслуживания"},3,"норма обслуживания",1.6,"3норма обслуживания1,6",0.67]
[{"$nulls":10},{"$f":"CONCATENATE(Калькулятор!$G$13,Калькулятор!$T$228,Калькулятор!$G$233)","v":"норма обслуживания"},3,"норма времени обслуживания",1.6,"3норма времени обслуживания1,6",1.49]
[{"$nulls":10},{"$f":"CONCATENATE(Калькулятор!$G$13,Калькулятор!$T$243,Калькулятор!$G$249)","v":"норма времени обслуживания"},4,"норма обслуживания",1.6,"4норма обслуживания1,6",0.93]
[{"$nulls":10},{"$f":"CONCATENATE(Калькулятор!$G$13,Калькулятор!$T$244,Калькулятор!$G$249)","v":"норма обслуживания"},4,"норма времени обслуживания",1.6,"4норма времени обслуживания1,6",1.08]
[{"$nulls":10},{"$f":"CONCATENATE(Калькулятор!$G$13,Калькулятор!$T$259,Калькулятор!$G$265)","v":"норма времени обслуживания"},5,"норма обслуживания",1.6,"5норма обслуживания1,6",0.93]
[{"$nulls":10},{"$f":"CONCATENATE(Калькулятор!$G$13,Калькулятор!$T$260,Калькулятор!$G$265)","v":"норма обслуживания"},5,"норма времени обслуживания",1.6,"5норма времени обслуживания1,6",1.08]
[{"$nulls":10},{"$f":"CONCATENATE(Калькулятор!$G$13,Калькулятор!$T$275,Калькулятор!$G$281)","v":"норма времени обслуживания"},1,"норма обслуживания",1.8,"1норма обслуживания1,8",0.55]
[{"$nulls":10},{"$f":"CONCATENATE(Калькулятор!$G$13,Калькулятор!$T$276,Калькулятор!$G$281)","v":"норма обслуживания"},1,"норма времени обслуживания",1.8,"1норма времени обслуживания1,8",1.82]
[{"$nulls":10},{"$f":"CONCATENATE(Калькулятор!$G$13,Калькулятор!$T$291,Калькулятор!$G$297)","v":"норма времени обслуживания"},2,"норма обслуживания",1.8,"2норма обслуживания1,8",{"v":0.6,"d":"0.60"}]
[{"$nulls":10},{"$f":"CONCATENATE(Калькулятор!$G$13,Калькулятор!$T$292,Калькулятор!$G$297)","v":"норма обслуживания"},2,"норма времени обслуживания",1.8,"2норма времени обслуживания1,8",1.67]
[{"$nulls":10},{"$f":"CONCATENATE(Калькулятор!$G$13,Калькулятор!$T$307,Калькулятор!$G$313)","v":"норма времени обслуживания"},3,"норма обслуживания",1.8,"3норма обслуживания1,8",{"v":0.6,"d":"0.60"}]
[{"$nulls":10},{"$f":"CONCATENATE(Калькулятор!$G$13,Калькулятор!$T$308,Калькулятор!$G$313)","v":"норма обслуживания"},3,"норма времени обслуживания",1.8,"3норма времени обслуживания1,8",1.67]
[{"$nulls":10},{"$f":"CONCATENATE(Калькулятор!$G$13,Калькулятор!$T$323,Калькулятор!$G$329)","v":"норма времени обслуживания"},4,"норма обслуживания",1.8,"4норма обслуживания1,8",{"v":0.9,"d":"0.90"}]
[{"$nulls":10},{"$f":"CONCATENATE(Калькулятор!$G$13,Калькулятор!$T$324,Калькулятор!$G$329)","v":"норма обслуживания"},4,"норма времени обслуживания",1.8,"4норма времени обслуживания1,8",1.11]
[{"$nulls":10},{"$f":"CONCATENATE(Калькулятор!$G$15,Калькулятор!$T$338,Калькулятор!$G$347)","v":"норма времени обслуживания"},5,"норма обслуживания",1.8,"5норма обслуживания1,8",{"v":0.9,"d":"0.90"}]
[{"$nulls":10},{"$f":"CONCATENATE(Калькулятор!$G$15,Калькулятор!$T$339,Калькулятор!$G$347)","v":"норма обслуживания"},5,"норма времени обслуживания",1.8,"5норма времени обслуживания1,8",1.11]
[{"$nulls":10},{"$f":"CONCATENATE(Калькулятор!$G$15,Калькулятор!$T$357,Калькулятор!$G$367)","v":"норма времени обслуживания"},1,"норма обслуживания",2,"1норма обслуживания2",{"v":0.5,"d":"0.50"}]
[{"$nulls":10},{"$f":"CONCATENATE(Калькулятор!$G$15,Калькулятор!$T$358,Калькулятор!$G$367)","v":"норма обслуживания"},1,"норма времени обслуживания",2,"1норма времени обслуживания2",{"v":2,"d":"2.00"}]
[{"$nulls":10},{"$f":"CONCATENATE(Калькулятор!$G$15,Калькулятор!$T$373,Калькулятор!$G$387)","v":"норма времени обслуживания"},2,"норма обслуживания",2,"2норма обслуживания2",0.55]
[{"$nulls":10},{"$f":"CONCATENATE(Калькулятор!$G$15,Калькулятор!$T$374,Калькулятор!$G$387)","v":"норма обслуживания"},2,"норма времени обслуживания",2,"2норма времени обслуживания2",1.82]
[{"$nulls":10},{"$f":"CONCATENATE(Калькулятор!$G$17,Калькулятор!$T$403,Калькулятор!$G$409)","v":"норма времени обслуживания"},3,"норма обслуживания",2,"3норма обслуживания2",0.55]
[{"$nulls":10},{"$f":"CONCATENATE(Калькулятор!$G$17,Калькулятор!$T$404,Калькулятор!$G$409)","v":"норма обслуживания"},3,"норма времени обслуживания",2,"3норма времени обслуживания2",1.82]
[{"$nulls":10},{"$f":"CONCATENATE(Калькулятор!$G$17,Калькулятор!$T$421,Калькулятор!$G$427)","v":"норма времени обслуживания"},4,"норма обслуживания",2,"4норма обслуживания2",0.88]
[{"$nulls":10},{"$f":"CONCATENATE(Калькулятор!$G$17,Калькулятор!$T$422,Калькулятор!$G$427)","v":"норма обслуживания"},4,"норма времени обслуживания",2,"4норма времени обслуживания2",1.14]
[{"$nulls":10},{"$f":"CONCATENATE(Калькулятор!G437,Калькулятор!T439,Калькулятор!G447)","v":"норма времени обслуживания"},5,"норма обслуживания",2,"5норма обслуживания2",0.88]
[{"$nulls":10},{"$f":"CONCATENATE(Калькулятор!G437,Калькулятор!T440,Калькулятор!G447)","v":"норма обслуживания"},5,"норма времени обслуживания",2,"5норма времени обслуживания2",1.14]
[{"$nulls":10},{"$f":"CONCATENATE(Калькулятор!G453,Калькулятор!T455,Калькулятор!G463)","v":"норма времени обслуживания"},1,"норма обслуживания",2.2,"1норма обслуживания2,2",0.45]
[{"$nulls":10},{"$f":"CONCATENATE(Калькулятор!G453,Калькулятор!T456,Калькулятор!G463)","v":"норма обслуживания"},1,"норма времени обслуживания",2.2,"1норма времени обслуживания2,2",2.22]
[{"$nulls":10},{"$f":"CONCATENATE(Калькулятор!G469,Калькулятор!T471,Калькулятор!G479)","v":"норма времени обслуживания"},2,"норма обслуживания",2.2,"2норма обслуживания2,2",{"v":0.5,"d":"0.50"}]
[{"$nulls":10},{"$f":"CONCATENATE(Калькулятор!G469,Калькулятор!T471,Калькулятор!G479)","v":"норма времени обслуживания"},2,"норма времени обслуживания",2.2,"2норма времени обслуживания2,2",{"v":2,"d":"2.00"}]
[{"$nulls":10},{"$f":"CONCATENATE(Калькулятор!G485,Калькулятор!T487,Калькулятор!G495)","v":"норма времени обслуживания"},3,"норма обслуживания",2.2,"3норма обслуживания2,2",{"v":0.5,"d":"0.50"}]
[{"$nulls":10},{"$f":"CONCATENATE(Калькулятор!G485,Калькулятор!T488,Калькулятор!G495)","v":"норма обслуживания"},3,"норма времени обслуживания",2.2,"3норма времени обслуживания2,2",{"v":2,"d":"2.00"}]
[{"$nulls":10},{"$f":"CONCATENATE(Калькулятор!G501,Калькулятор!T503,Калькулятор!G511)","v":"норма времени обслуживания"},4,"норма обслуживания",2.2,"4норма обслуживания2,2",0.87]
[{"$nulls":10},{"$f":"CONCATENATE(Калькулятор!G501,Калькулятор!T504,Калькулятор!G511)","v":"норма обслуживания"},4,"норма времени обслуживания",2.2,"4норма времени обслуживания2,2",1.15]
[{"$nulls":11},5,"норма обслуживания",2.2,"5норма обслуживания2,2",0.87]
[{"$nulls":11},5,"норма времени обслуживания",2.2,"5норма времени обслуживания2,2",1.15]
[{"$nulls":11},1,"норма обслуживания",2.4,"1норма обслуживания2,4",0.41]
[{"$nulls":11},1,"норма времени обслуживания",2.4,"1норма времени обслуживания2,4",2.44]
[{"$nulls":11},2,"норма обслуживания",2.4,"2норма обслуживания2,4",0.46]
[{"$nulls":11},2,"норма времени обслуживания",2.4,"2норма времени обслуживания2,4",2.17]
[{"$nulls":11},3,"норма обслуживания",2.4,"3норма обслуживания2,4",0.46]
[{"$nulls":11},3,"норма времени обслуживания",2.4,{"$f":"CONCATENATE(L68,M68,N68)","v":"3норма времени обслуживания2,4"},2.17]
[{"$nulls":11},4,"норма обслуживания",2.4,"4норма обслуживания2,4",0.85]
[{"$nulls":11},4,"норма времени обслуживания",2.4,"4норма времени обслуживания2,4",1.18]
[{"$nulls":11},5,"норма обслуживания",2.4,"5норма обслуживания2,4",0.85]
[{"$nulls":11},5,"норма времени обслуживания",2.4,"5норма времени обслуживания2,4",1.18]
[{"$nulls":11},1,"норма обслуживания",2.6,"1норма обслуживания2,6",0.38]
[{"$nulls":11},1,"норма времени обслуживания",2.6,"1норма времени обслуживания2,6",2.63]
[{"$nulls":11},2,"норма обслуживания",2.6,"2норма обслуживания2,6",0.43]
[{"$nulls":11},2,"норма времени обслуживания",2.6,"2норма времени обслуживания2,6",2.32]
[{"$nulls":11},3,"норма обслуживания",2.6,"3норма обслуживания2,6",0.43]
[{"$nulls":11},3,"норма времени обслуживания",2.6,"3норма времени обслуживания2,6",2.32]
[{"$nulls":11},4,"норма обслуживания",2.6,"4норма обслуживания2,6",0.84]
[{"$nulls":11},4,"норма времени обслуживания",2.6,"4норма времени обслуживания2,6",1.19]
[{"$nulls":11},5,"норма обслуживания",2.6,"5норма обслуживания2,6",0.84]
[{"$nulls":11},5,"норма времени обслуживания",2.6,"5норма времени обслуживания2,6",1.19]
[{"$nulls":11},1,"норма обслуживания",2.8,"1норма обслуживания2,8",0.35]
[{"$nulls":11},1,"норма времени обслуживания",2.8,"1норма времени обслуживания2,8",2.86]
[{"$nulls":11},2,"норма обслуживания",2.8,"2норма обслуживания2,8",{"v":0.4,"d":"0.40"}]
[{"$nulls":11},2,"норма времени обслуживания",2.8,"2норма времени обслуживания2,8",{"v":2.5,"d":"2.50"}]
[{"$nulls":11},3,"норма обслуживания",2.8,"3норма обслуживания2,8",{"v":0.4,"d":"0.40"}]
[{"$nulls":11},3,"норма времени обслуживания",2.8,"3норма времени обслуживания2,8",{"v":2.5,"d":"2.50"}]
[{"$nulls":11},4,"норма обслуживания",2.8,"4норма обслуживания2,8",0.81]
[{"$nulls":11},4,"норма времени обслуживания",2.8,"4норма времени обслуживания2,8",1.23]
[{"$nulls":11},5,"норма обслуживания",2.8,"5норма обслуживания2,8",0.81]
[{"$nulls":11},5,"норма времени обслуживания",2.8,"5норма времени обслуживания2,8",1.23]
[{"$nulls":11},1,"норма обслуживания",3,"1норма обслуживания3",0.33]
[{"$nulls":11},1,"норма времени обслуживания",3,"1норма времени обслуживания3",3.03]
[{"$nulls":11},2,"норма обслуживания",3,"2норма обслуживания3",0.38]
[{"$nulls":11},2,"норма времени обслуживания",3,"2норма времени обслуживания3",2.63]
[{"$nulls":11},3,"норма обслуживания",3,"3норма обслуживания3",0.38]
[{"$nulls":11},3,"норма времени обслуживания",3,"3норма времени обслуживания3",2.63]
[{"$nulls":11},4,"норма обслуживания",3,"4норма обслуживания3",{"v":0.8,"d":"0.80"}]
[{"$nulls":11},4,"норма времени обслуживания",3,"4норма времени обслуживания3",1.25]
[{"$nulls":11},5,"норма обслуживания",3,"5норма обслуживания3",{"v":0.8,"d":"0.80"}]
[{"$nulls":11},5,"норма времени обслуживания",3,"5норма времени обслуживания3",1.25]